Publisher Label,Publisher URI,"Supplier ID","Supplier","Invoice No.","Amount £","Purpose","Transaction Number","Payment Date","Organisational Unit","Cost Centre(T)","Internal Category Number"
"Wolverhampton City Council","http://opendatacommunities.org/id/metropolitan-district-council/wolverhampton","710928","Yoo Recruit LTD","CWC10221245","2,937.27","Agency Staff","190483557","11/07/2018","Managing Director","Managing Director","R1100"
"Wolverhampton City Council","http://opendatacommunities.org/id/metropolitan-district-council/wolverhampton","710928","Yoo Recruit LTD","CWC10221270","17.55","Agency Staff","190483582","11/07/2018","Public Protection","EHTS Staffing","R1100"
"Wolverhampton City Council","http://opendatacommunities.org/id/metropolitan-district-council/wolverhampton","710928","Yoo Recruit LTD","CWC10221307","4.50","Agency Staff","190483619","11/07/2018","School Planning & Resources","Music Support Team","R1100"
"Wolverhampton City Council","http://opendatacommunities.org/id/metropolitan-district-council/wolverhampton","710928","Yoo Recruit LTD","CWC10221329","151.44","Agency Staff","190483641","11/07/2018","Special Educational Needs","Special - Transport","R1100"
"Wolverhampton City Council","http://opendatacommunities.org/id/metropolitan-district-council/wolverhampton","710928","Yoo Recruit LTD","CWC10221313","335.58","Agency Staff","190483625","11/07/2018","School Planning & Resources","Music Support Team","R1100"
"Wolverhampton City Council","http://opendatacommunities.org/id/metropolitan-district-council/wolverhampton","710928","Yoo Recruit LTD","CWC10221294","650.16","Agency Staff","190483606","11/07/2018","Adult Education","Foundation Studies Delivery Area","R1100"
"Wolverhampton City Council","http://opendatacommunities.org/id/metropolitan-district-council/wolverhampton","710928","Yoo Recruit LTD","CWC10221302","111.69","Agency Staff","190483614","11/07/2018","Adult Education","Learner Services","R1100"
"Wolverhampton City Council","http://opendatacommunities.org/id/metropolitan-district-council/wolverhampton","710928","Yoo Recruit LTD","CWC10221322","122.10","Agency Staff","190483634","11/07/2018","Special Educational Needs","Special - Transport","R1100"
"Wolverhampton City Council","http://opendatacommunities.org/id/metropolitan-district-council/wolverhampton","710928","Yoo Recruit LTD","CWC10221342","312.79","Agency Staff","190483654","11/07/2018","Central Corporate Budgets","Non Distributed Costs - Pensions Fund","R1100"
"Wolverhampton City Council","http://opendatacommunities.org/id/metropolitan-district-council/wolverhampton","710928","Yoo Recruit LTD","CWC10221380","1,214.71","Agency Staff","190483692","11/07/2018","Child Protection","CIN/CP Social Work Unit - Area 2","R1100"
"Wolverhampton City Council","http://opendatacommunities.org/id/metropolitan-district-council/wolverhampton","710928","Yoo Recruit LTD","CWC10221386","1,552.89","Agency Staff","190483698","11/07/2018","Child Protection","CIN/CP Social Work Unit - Area 4","R1100"
"Wolverhampton City Council","http://opendatacommunities.org/id/metropolitan-district-council/wolverhampton","710928","Yoo Recruit LTD","CWC10221385","1,549.19","Agency Staff","190483697","11/07/2018","Child Protection","CIN/CP Social Work Unit - Area 3","R1100"
"Wolverhampton City Council","http://opendatacommunities.org/id/metropolitan-district-council/wolverhampton","710928","Yoo Recruit LTD","CWC10221384","1,211.01","Agency Staff","190483696","11/07/2018","Child Protection","CIN/CP Social Work Unit - Area 3","R1100"
"Wolverhampton City Council","http://opendatacommunities.org/id/metropolitan-district-council/wolverhampton","710928","Yoo Recruit LTD","CWC10221506","110.79","Agency Staff","190483818","11/07/2018","Leisure Services","WV Active Catering - Central","R1100"
"Wolverhampton City Council","http://opendatacommunities.org/id/metropolitan-district-council/wolverhampton","710928","Yoo Recruit LTD","CWC10221486","8.10","Agency Staff","190483798","11/07/2018","Adults Assessment & Care Management SLC","Supporting Life Choices","R1100"
"Wolverhampton City Council","http://opendatacommunities.org/id/metropolitan-district-council/wolverhampton","710928","Yoo Recruit LTD","CWC10221395","4.00","Agency Staff","190483707","11/07/2018","Child Protection","MASH","R1100"
"Wolverhampton City Council","http://opendatacommunities.org/id/metropolitan-district-council/wolverhampton","710928","Yoo Recruit LTD","CWC10221417","2,684.84","Agency Staff","190483729","11/07/2018","Looked After Children","RAA - Regional Adoption Agency","R1100"
"Wolverhampton City Council","http://opendatacommunities.org/id/metropolitan-district-council/wolverhampton","710928","Yoo Recruit LTD","CWC10221470","3.15","Agency Staff","190483782","11/07/2018","Adults Assessment & Care Management SLC","Supporting Life Choices","R1100"
"Wolverhampton City Council","http://opendatacommunities.org/id/metropolitan-district-council/wolverhampton","710928","Yoo Recruit LTD","CWC10221474","3.15","Agency Staff","190483786","11/07/2018","Adults Assessment & Care Management SLC","Supporting Life Choices","R1100"
"Wolverhampton City Council","http://opendatacommunities.org/id/metropolitan-district-council/wolverhampton","710928","Yoo Recruit LTD","CWC10221476","3.60","Agency Staff","190483788","11/07/2018","Adults Assessment & Care Management SLC","Supporting Life Choices","R1100"
"Wolverhampton City Council","http://opendatacommunities.org/id/metropolitan-district-council/wolverhampton","710928","Yoo Recruit LTD","CWC10221396","15.00","Agency Staff","190483708","11/07/2018","Child Protection","MASH","R1100"
"Wolverhampton City Council","http://opendatacommunities.org/id/metropolitan-district-council/wolverhampton","710928","Yoo Recruit LTD","CWC10217362","34.56","Agency Staff","190482461","11/07/2018","Child Protection","CIN/CP Social Work Unit - Area 2","R1100"
"Wolverhampton City Council","http://opendatacommunities.org/id/metropolitan-district-council/wolverhampton","710928","Yoo Recruit LTD","CWC10217420","127.16","Agency Staff","190482519","11/07/2018","Visitor Economy","VEC - Casual & Agency Staff","R1100"
"Wolverhampton City Council","http://opendatacommunities.org/id/metropolitan-district-council/wolverhampton","710928","Yoo Recruit LTD","CWC10217311","151.44","Agency Staff","190482410","11/07/2018","Special Educational Needs","Special - Transport","R1100"
"Wolverhampton City Council","http://opendatacommunities.org/id/metropolitan-district-council/wolverhampton","710928","Yoo Recruit LTD","CWC10217386","471.90","Agency Staff","190482485","11/07/2018","Adults Assessment & Care Management North","Adult Services � North","R1100"
"Wolverhampton City Council","http://opendatacommunities.org/id/metropolitan-district-council/wolverhampton","710928","Yoo Recruit LTD","CWC10217325","1,518.15","Agency Staff","190482424","11/07/2018","Corporate Asset Management","Strategic Asset Management Team","R1100"
"Wolverhampton City Council","http://opendatacommunities.org/id/metropolitan-district-council/wolverhampton","710928","Yoo Recruit LTD","CWC10217368","1,211.01","Agency Staff","190482467","11/07/2018","Child Protection","CIN/CP Social Work Unit - Area 3","R1100"
"Wolverhampton City Council","http://opendatacommunities.org/id/metropolitan-district-council/wolverhampton","710928","Yoo Recruit LTD","CWC10217372","1,214.71","Agency Staff","190482471","11/07/2018","Child Protection","CIN/CP Social Work Unit - Area 8","R1100"
"Wolverhampton City Council","http://opendatacommunities.org/id/metropolitan-district-council/wolverhampton","710928","Yoo Recruit LTD","CWC10217336","56.26","Agency Staff","190482435","11/07/2018","Leisure Services","WV Active Business Support","R1100"
"Wolverhampton City Council","http://opendatacommunities.org/id/metropolitan-district-council/wolverhampton","710928","Yoo Recruit LTD","CWC10217366","1,549.19","Agency Staff","190482465","11/07/2018","Child Protection","CIN/CP Social Work Unit - Area 2","R1100"
"Wolverhampton City Council","http://opendatacommunities.org/id/metropolitan-district-council/wolverhampton","710928","Yoo Recruit LTD","CWC10217374","4.00","Agency Staff","190482473","11/07/2018","Child Protection","MASH","R1100"
"Wolverhampton City Council","http://opendatacommunities.org/id/metropolitan-district-council/wolverhampton","710928","Yoo Recruit LTD","CWC10217376","4.30","Agency Staff","190482475","11/07/2018","Child Protection","MASH","R1100"
"Wolverhampton City Council","http://opendatacommunities.org/id/metropolitan-district-council/wolverhampton","710928","Yoo Recruit LTD","CWC10217371","1,231.13","Agency Staff","190482470","11/07/2018","Child Protection","CIN/CP Social Work Unit - Area 7","R1100"
"Wolverhampton City Council","http://opendatacommunities.org/id/metropolitan-district-council/wolverhampton","710928","Yoo Recruit LTD","CWC10217409","1,402.30","Agency Staff","190482508","11/07/2018","Adults Assessment & Care Management SLC","Supporting Life Choices","R1100"
"Wolverhampton City Council","http://opendatacommunities.org/id/metropolitan-district-council/wolverhampton","710928","Yoo Recruit LTD","CWC1021715","10.80","Agency Staff","190482114","11/07/2018","Specialist Support","Upper Pendeford Farm Short Breaks Centre","R1100"
"Wolverhampton City Council","http://opendatacommunities.org/id/metropolitan-district-council/wolverhampton","710928","Yoo Recruit LTD","CWC10217412","366.22","Agency Staff","190482511","11/07/2018","Leisure Services","WV Active Catering - Central","R1100"
"Wolverhampton City Council","http://opendatacommunities.org/id/metropolitan-district-council/wolverhampton","710928","Yoo Recruit LTD","CWC10217407","1,368.00","Agency Staff","190482506","11/07/2018","Adults Assessment & Care Management SLC","Supporting Life Choices","R1100"
"Wolverhampton City Council","http://opendatacommunities.org/id/metropolitan-district-council/wolverhampton","710928","Yoo Recruit LTD","CWC1021718","123.00","Agency Staff","190482117","11/07/2018","Specialist Support","Upper Pendeford Farm Short Breaks Centre","R1100"
"Wolverhampton City Council","http://opendatacommunities.org/id/metropolitan-district-council/wolverhampton","710928","Yoo Recruit LTD","CWC1021727","16.20","Agency Staff","190482126","11/07/2018","Looked After Children","Looked After Team 1","R1100"
"Wolverhampton City Council","http://opendatacommunities.org/id/metropolitan-district-council/wolverhampton","710928","Yoo Recruit LTD","CWC10217128","119.97","Agency Staff","190482227","11/07/2018","Leisure Services","Central Baths","R1100"
"Wolverhampton City Council","http://opendatacommunities.org/id/metropolitan-district-council/wolverhampton","710928","Yoo Recruit LTD","CWC10217149","122.10","Agency Staff","190482248","11/07/2018","Catering","Primary Schools Catering","R1100"
"Wolverhampton City Council","http://opendatacommunities.org/id/metropolitan-district-council/wolverhampton","710928","Yoo Recruit LTD","CWC10217141","122.10","Agency Staff","190482240","11/07/2018","Catering","Education Catering - General Overheads","R1100"
"Wolverhampton City Council","http://opendatacommunities.org/id/metropolitan-district-council/wolverhampton","710928","Yoo Recruit LTD","CWC10217109","104.64","Agency Staff","190482208","11/07/2018","Leisure Services","Bert Williams Leisure Centre","R1100"
"Wolverhampton City Council","http://opendatacommunities.org/id/metropolitan-district-council/wolverhampton","710928","Yoo Recruit LTD","CWC10217162","121.20","Agency Staff","190482261","11/07/2018","Catering","Other Catering - General Overheads","R1100"
"Wolverhampton City Council","http://opendatacommunities.org/id/metropolitan-district-council/wolverhampton","710928","Yoo Recruit LTD","CWC10217150","122.10","Agency Staff","190482249","11/07/2018","Catering","Primary Schools Catering","R1100"
"Wolverhampton City Council","http://opendatacommunities.org/id/metropolitan-district-council/wolverhampton","710928","Yoo Recruit LTD","CWC10217156","97.76","Agency Staff","190482255","11/07/2018","Catering","Other Catering - General Overheads","R1100"
"Wolverhampton City Council","http://opendatacommunities.org/id/metropolitan-district-council/wolverhampton","710928","Yoo Recruit LTD","CWC10217123","616.51","Agency Staff","190482222","11/07/2018","Leisure Services","Bert Williams Leisure Centre","R1100"
"Wolverhampton City Council","http://opendatacommunities.org/id/metropolitan-district-council/wolverhampton","710928","Yoo Recruit LTD","CWC1021736","585.20","Agency Staff","190482135","11/07/2018","Child Protection","Childrens with Disabilities Team","R1100"
"Wolverhampton City Council","http://opendatacommunities.org/id/metropolitan-district-council/wolverhampton","710928","Yoo Recruit LTD","CWC10217167","124.50","Agency Staff","190482266","11/07/2018","Catering","Other Catering - General Overheads","R1100"
"Wolverhampton City Council","http://opendatacommunities.org/id/metropolitan-district-council/wolverhampton","710928","Yoo Recruit LTD","CWC1021767","107.61","Agency Staff","190482166","11/07/2018","Local Economy","Adult Lending Library","R1100"
"Wolverhampton City Council","http://opendatacommunities.org/id/metropolitan-district-council/wolverhampton","710928","Yoo Recruit LTD","CWC10217170","99.83","Agency Staff","190482269","11/07/2018","Customer Services","City Direct","R1100"
"Wolverhampton City Council","http://opendatacommunities.org/id/metropolitan-district-council/wolverhampton","710928","Yoo Recruit LTD","CWC1021769","4.95","Agency Staff","190482168","11/07/2018","Independent Living Service","Independent Living Service","R1100"
"Wolverhampton City Council","http://opendatacommunities.org/id/metropolitan-district-council/wolverhampton","710928","Yoo Recruit LTD","CWC10217102","61.55","Agency Staff","190482201","11/07/2018","Leisure Services","Bert Williams Leisure Centre","R1100"
"Wolverhampton City Council","http://opendatacommunities.org/id/metropolitan-district-council/wolverhampton","710928","Yoo Recruit LTD","CWC10217108","102.60","Agency Staff","190482207","11/07/2018","Leisure Services","Bert Williams Leisure Centre","R1100"
"Wolverhampton City Council","http://opendatacommunities.org/id/metropolitan-district-council/wolverhampton","710928","Yoo Recruit LTD","CWC10217202","152.75","Agency Staff","190482301","11/07/2018","Cleaning","Cleaning of Buildings - General","R1100"
"Wolverhampton City Council","http://opendatacommunities.org/id/metropolitan-district-council/wolverhampton","710928","Yoo Recruit LTD","CWC10217201","151.50","Agency Staff","190482300","11/07/2018","Cleaning","Cleaning of Buildings - General","R1100"
"Wolverhampton City Council","http://opendatacommunities.org/id/metropolitan-district-council/wolverhampton","710928","Yoo Recruit LTD","CWC10217276","406.07","Agency Staff","190482375","11/07/2018","Adult Education","Foundation Studies Delivery Area","R1100"
"Wolverhampton City Council","http://opendatacommunities.org/id/metropolitan-district-council/wolverhampton","710928","Yoo Recruit LTD","CWC10225339","113.13","Agency Staff","190486843","23/07/2018","Adult Education","Educational Studies Delivery Area","R1100"
"Wolverhampton City Council","http://opendatacommunities.org/id/metropolitan-district-council/wolverhampton","710928","Yoo Recruit LTD","CWC102134558","244.20","Agency Staff","190480791","04/07/2018","Visitor Economy","VEC - Casual & Agency Staff","R1100"
"Wolverhampton City Council","http://opendatacommunities.org/id/metropolitan-district-council/wolverhampton","710928","Yoo Recruit LTD","CWC102132732","300.37","Agency Staff","190478965","04/07/2018","Parking Services","Shopmobility","R1100"
"Wolverhampton City Council","http://opendatacommunities.org/id/metropolitan-district-council/wolverhampton","710928","Yoo Recruit LTD","CWC10221390","820.75","Agency Staff","190483702","11/07/2018","Child Protection","CIN/CP Social Work Unit - Area 7","R1100"
"Wolverhampton City Council","http://opendatacommunities.org/id/metropolitan-district-council/wolverhampton","710928","Yoo Recruit LTD","Consolidated46OR","180,078.89","Agency Staff","190482098","11/07/2018","Central Corporate Budgets","Yoo Recruit Payments","R1100"
"Wolverhampton City Council","http://opendatacommunities.org/id/metropolitan-district-council/wolverhampton","710928","Yoo Recruit LTD","CWC1022931","1,066.08","Agency Staff","190490579","27/07/2018","Emergency Duty Team","Emergency Duty Team","R1100"
"Wolverhampton City Council","http://opendatacommunities.org/id/metropolitan-district-council/wolverhampton","710928","Yoo Recruit LTD","CWC102131809","-470.64","Agency Staff","190478042","04/07/2018","Customer Services","City Direct","R1100"
"Wolverhampton City Council","http://opendatacommunities.org/id/metropolitan-district-council/wolverhampton","710928","Yoo Recruit LTD","CWC102134168","608.32","Agency Staff","190480401","04/07/2018","Headstart","Headstart - Learning Technologies Team","R1100"
"Wolverhampton City Council","http://opendatacommunities.org/id/metropolitan-district-council/wolverhampton","710928","Yoo Recruit LTD","CWC102133450","610.08","Agency Staff","190479683","04/07/2018","Governance Services","Business Support - Governance","R1100"
"Wolverhampton City Council","http://opendatacommunities.org/id/metropolitan-district-council/wolverhampton","710928","Yoo Recruit LTD","CWC102132203","27.50","Agency Staff","190478436","04/07/2018","Cleaning","Cleaning of Buildings - General","R1100"
"Wolverhampton City Council","http://opendatacommunities.org/id/metropolitan-district-council/wolverhampton","710928","Yoo Recruit LTD","CWC102131641","73.32","Agency Staff","190477874","04/07/2018","Catering","Other Catering - General Overheads","R1100"
"Wolverhampton City Council","http://opendatacommunities.org/id/metropolitan-district-council/wolverhampton","710928","Yoo Recruit LTD","CWC102132838","-226.24","Agency Staff","190479071","04/07/2018","Enterprise","Economic Development","R1100"
"Wolverhampton City Council","http://opendatacommunities.org/id/metropolitan-district-council/wolverhampton","710928","Yoo Recruit LTD","CWC10229243","150.84","Agency Staff","190490791","27/07/2018","Adult Education","Foundation Studies Delivery Area","R1100"
"Wolverhampton City Council","http://opendatacommunities.org/id/metropolitan-district-council/wolverhampton","710928","Yoo Recruit LTD","CWC10229344","1,211.01","Agency Staff","190490892","27/07/2018","Child Protection","MASH","R1100"
"Wolverhampton City Council","http://opendatacommunities.org/id/metropolitan-district-council/wolverhampton","710928","Yoo Recruit LTD","CWC10229313","168.78","Agency Staff","190490861","27/07/2018","Leisure Services","WV Active Business Support","R1100"
"Wolverhampton City Council","http://opendatacommunities.org/id/metropolitan-district-council/wolverhampton","710928","Yoo Recruit LTD","CWC10229333","1,214.71","Agency Staff","190490881","27/07/2018","Child Protection","CIN/CP Social Work Unit - Area 7","R1100"
"Wolverhampton City Council","http://opendatacommunities.org/id/metropolitan-district-council/wolverhampton","710928","Yoo Recruit LTD","CWC10229386","1,216.64","Agency Staff","190490934","27/07/2018","Headstart","Headstart - Learning Technologies Team","R1100"
"Wolverhampton City Council","http://opendatacommunities.org/id/metropolitan-district-council/wolverhampton","710928","Yoo Recruit LTD","CWC1022916","1,223.60","Agency Staff","190490564","27/07/2018","Youth Offending","Youth Offending Team","R1100"
"Wolverhampton City Council","http://opendatacommunities.org/id/metropolitan-district-council/wolverhampton","710928","Yoo Recruit LTD","CWC102297","2,352.00","Agency Staff","190490555","27/07/2018","Looked After Children","Adoption and Residence Team & Allowances","R1100"
"Wolverhampton City Council","http://opendatacommunities.org/id/metropolitan-district-council/wolverhampton","710928","Yoo Recruit LTD","CWC1022975","147.72","Agency Staff","190490623","27/07/2018","Leisure Services","Aldersley Leisure Village","R1100"
"Wolverhampton City Council","http://opendatacommunities.org/id/metropolitan-district-council/wolverhampton","710928","Yoo Recruit LTD","CWC10229119","159.96","Agency Staff","190490667","27/07/2018","Leisure Services","Central Baths","R1100"
"Wolverhampton City Council","http://opendatacommunities.org/id/metropolitan-district-council/wolverhampton","710928","Yoo Recruit LTD","CWC10229148","119.97","Agency Staff","190490696","27/07/2018","Customer Services","City Direct","R1100"
"Wolverhampton City Council","http://opendatacommunities.org/id/metropolitan-district-council/wolverhampton","710928","Yoo Recruit LTD","CWC10229228","2,099.96","Agency Staff","190490776","27/07/2018","Public Protection","EHTS Staffing","R1100"
"Wolverhampton City Council","http://opendatacommunities.org/id/metropolitan-district-council/wolverhampton","710928","Yoo Recruit LTD","CWC102131795","-479.89","Agency Staff","190478028","04/07/2018","Customer Services","City Direct","R1100"
"Wolverhampton City Council","http://opendatacommunities.org/id/metropolitan-district-council/wolverhampton","710928","Yoo Recruit LTD","CWC102134167","-594.08","Agency Staff","190480400","04/07/2018","Headstart","Headstart - Learning Technologies Team","R1100"
"Wolverhampton City Council","http://opendatacommunities.org/id/metropolitan-district-council/wolverhampton","710928","Yoo Recruit LTD","CWC102131316","293.26","Agency Staff","190477549","04/07/2018","Leisure Services","Central Baths","R1100"
"Wolverhampton City Council","http://opendatacommunities.org/id/metropolitan-district-council/wolverhampton","710928","Yoo Recruit LTD","CWC10225656","38.03","Agency Staff","190487160","23/07/2018","Early Intervention","EIP Locality 3 - Graiseley","R1100"
"Wolverhampton City Council","http://opendatacommunities.org/id/metropolitan-district-council/wolverhampton","710928","Yoo Recruit LTD","CWC10225558","47.33","Agency Staff","190487062","23/07/2018","Special Educational Needs","Special - Transport","R1100"
"Wolverhampton City Council","http://opendatacommunities.org/id/metropolitan-district-council/wolverhampton","710928","Yoo Recruit LTD","CWC10225601","56.26","Agency Staff","190487105","23/07/2018","Leisure Services","WV Active Business Support","R1100"
"Wolverhampton City Council","http://opendatacommunities.org/id/metropolitan-district-council/wolverhampton","710928","Yoo Recruit LTD","CWC10225621","736.43","Agency Staff","190487125","23/07/2018","Child Protection","CIN/CP Social Work Unit - Area 1","R1100"
"Wolverhampton City Council","http://opendatacommunities.org/id/metropolitan-district-council/wolverhampton","710928","Yoo Recruit LTD","CWC10225619","760.72","Agency Staff","190487123","23/07/2018","The Hub","Payroll/HR","R1100"
"Wolverhampton City Council","http://opendatacommunities.org/id/metropolitan-district-council/wolverhampton","710928","Yoo Recruit LTD","CWC10225611","526.68","Agency Staff","190487115","23/07/2018","Leisure Services","WV Active Business Support","R1100"
"Wolverhampton City Council","http://opendatacommunities.org/id/metropolitan-district-council/wolverhampton","710928","Yoo Recruit LTD","CWC10225564","164.84","Agency Staff","190487068","23/07/2018","Special Educational Needs","Special - Transport","R1100"
"Wolverhampton City Council","http://opendatacommunities.org/id/metropolitan-district-council/wolverhampton","710928","Yoo Recruit LTD","CWC10225578","-205.62","Agency Staff","190487082","23/07/2018","Adult Education","Work Related Studies","R1100"
"Wolverhampton City Council","http://opendatacommunities.org/id/metropolitan-district-council/wolverhampton","710928","Yoo Recruit LTD","CWC10225589","251.40","Agency Staff","190487093","23/07/2018","Adult Education","Work Related Studies","R1100"
"Wolverhampton City Council","http://opendatacommunities.org/id/metropolitan-district-council/wolverhampton","710928","Yoo Recruit LTD","CWC10225591","1,518.15","Agency Staff","190487095","23/07/2018","Corporate Asset Management","Strategic Asset Management Team","R1100"
"Wolverhampton City Council","http://opendatacommunities.org/id/metropolitan-district-council/wolverhampton","710928","Yoo Recruit LTD","CWC10225600","28.13","Agency Staff","190487104","23/07/2018","Leisure Services","WV Active Business Support","R1100"
"Wolverhampton City Council","http://opendatacommunities.org/id/metropolitan-district-council/wolverhampton","710928","Yoo Recruit LTD","CWC10225583","188.55","Agency Staff","190487087","23/07/2018","Adult Education","Work Related Studies","R1100"
"Wolverhampton City Council","http://opendatacommunities.org/id/metropolitan-district-council/wolverhampton","710928","Yoo Recruit LTD","CWC10225599","401.50","Agency Staff","190487103","23/07/2018","Public Service Reform","Management Trainee Programme","R1100"
"Wolverhampton City Council","http://opendatacommunities.org/id/metropolitan-district-council/wolverhampton","710928","Yoo Recruit LTD","CWC10225598","289.45","Agency Staff","190487102","23/07/2018","Public Service Reform","Management Trainee Programme","R1100"
"Wolverhampton City Council","http://opendatacommunities.org/id/metropolitan-district-council/wolverhampton","710928","Yoo Recruit LTD","CWC10225669","924.00","Agency Staff","190487173","23/07/2018","Adults Assessment & Care Management East","Adult Services � East","R1100"
"Wolverhampton City Council","http://opendatacommunities.org/id/metropolitan-district-council/wolverhampton","710928","Yoo Recruit LTD","CWC10225603","112.52","Agency Staff","190487107","23/07/2018","Leisure Services","WV Active Business Support","R1100"
"Wolverhampton City Council","http://opendatacommunities.org/id/metropolitan-district-council/wolverhampton","710928","Yoo Recruit LTD","CWC10225637","4.00","Agency Staff","190487141","23/07/2018","Child Protection","MASH","R1100"
"Wolverhampton City Council","http://opendatacommunities.org/id/metropolitan-district-council/wolverhampton","710928","Yoo Recruit LTD","CWC10225623","1,214.71","Agency Staff","190487127","23/07/2018","Child Protection","CIN/CP Social Work Unit - Area 1","R1100"
"Wolverhampton City Council","http://opendatacommunities.org/id/metropolitan-district-council/wolverhampton","710928","Yoo Recruit LTD","CWC10225648","39.58","Agency Staff","190487152","23/07/2018","Early Intervention","EIP Locality 1 - Eastfields","R1100"
"Wolverhampton City Council","http://opendatacommunities.org/id/metropolitan-district-council/wolverhampton","710928","Yoo Recruit LTD","CWC10225640","671.52","Agency Staff","190487144","23/07/2018","Child Protection","MASH","R1100"
"Wolverhampton City Council","http://opendatacommunities.org/id/metropolitan-district-council/wolverhampton","710928","Yoo Recruit LTD","CWC10225606","173.29","Agency Staff","190487110","23/07/2018","Leisure Services","WV Active Business Support","R1100"
"Wolverhampton City Council","http://opendatacommunities.org/id/metropolitan-district-council/wolverhampton","710928","Yoo Recruit LTD","CWC10225608","296.67","Agency Staff","190487112","23/07/2018","Leisure Services","WV Active Business Support","R1100"
"Wolverhampton City Council","http://opendatacommunities.org/id/metropolitan-district-council/wolverhampton","710928","Yoo Recruit LTD","CWC10225671","1.35","Agency Staff","190487175","23/07/2018","Adults Assessment & Care Management SLC","Supporting Life Choices","R1100"
"Wolverhampton City Council","http://opendatacommunities.org/id/metropolitan-district-council/wolverhampton","710928","Yoo Recruit LTD","CWC10225660","38.03","Agency Staff","190487164","23/07/2018","Early Intervention","EIP Locality 4 - Bingley","R1100"
"Wolverhampton City Council","http://opendatacommunities.org/id/metropolitan-district-council/wolverhampton","710928","Yoo Recruit LTD","CWC10225632","1,288.58","Agency Staff","190487136","23/07/2018","Child Protection","CIN/CP Social Work Unit - Area 5","R1100"
"Wolverhampton City Council","http://opendatacommunities.org/id/metropolitan-district-council/wolverhampton","710928","Yoo Recruit LTD","CWC10225643","1,214.71","Agency Staff","190487147","23/07/2018","Child Protection","MASH","R1100"
"Wolverhampton City Council","http://opendatacommunities.org/id/metropolitan-district-council/wolverhampton","710928","Yoo Recruit LTD","CWC10225670","1,549.19","Agency Staff","190487174","23/07/2018","Adults Assessment and Care Management MASH","Adult MASH","R1100"
"Wolverhampton City Council","http://opendatacommunities.org/id/metropolitan-district-council/wolverhampton","710928","Yoo Recruit LTD","CWC10225686","197.71","Agency Staff","190487190","23/07/2018","Leisure Services","WV Active Catering - Central","R1100"
"Wolverhampton City Council","http://opendatacommunities.org/id/metropolitan-district-council/wolverhampton","710928","Yoo Recruit LTD","CWC10225678","4.50","Agency Staff","190487182","23/07/2018","Adults Assessment & Care Management SLC","Supporting Life Choices","R1100"
"Wolverhampton City Council","http://opendatacommunities.org/id/metropolitan-district-council/wolverhampton","710928","Yoo Recruit LTD","CWC10225681","911.03","Agency Staff","190487185","23/07/2018","Adults Assessment & Care Management SLC","Supporting Life Choices","R1100"
"Wolverhampton City Council","http://opendatacommunities.org/id/metropolitan-district-council/wolverhampton","710928","Yoo Recruit LTD","CWC10225694","60.55","Agency Staff","190487198","23/07/2018","Visitor Economy","VEC - Casual & Agency Staff","R1100"
"Wolverhampton City Council","http://opendatacommunities.org/id/metropolitan-district-council/wolverhampton","710928","Yoo Recruit LTD","CWC10225691","386.68","Agency Staff","190487195","23/07/2018","Safeguarding","Safeguarding Partnership Board","R1100"
"Wolverhampton City Council","http://opendatacommunities.org/id/metropolitan-district-council/wolverhampton","710928","Yoo Recruit LTD","CWC10225688","289.29","Agency Staff","190487192","23/07/2018","Leisure Services","WV Active Catering - Central","R1100"
"Wolverhampton City Council","http://opendatacommunities.org/id/metropolitan-district-council/wolverhampton","710928","Yoo Recruit LTD","CWC1022568","98.56","Agency Staff","190486572","23/07/2018","Local Economy","Adult Lending Library","R1100"
"Wolverhampton City Council","http://opendatacommunities.org/id/metropolitan-district-council/wolverhampton","710928","Yoo Recruit LTD","CWC1022540","333.13","Agency Staff","190486544","23/07/2018","Learning Disability Provider","Duke Street Bungalows","R1100"
"Wolverhampton City Council","http://opendatacommunities.org/id/metropolitan-district-council/wolverhampton","710928","Yoo Recruit LTD","CWC1022583","1,283.70","Agency Staff","190486587","23/07/2018","Independent Living Service","Independent Living Service","R1100"
"Wolverhampton City Council","http://opendatacommunities.org/id/metropolitan-district-council/wolverhampton","710928","Yoo Recruit LTD","CWC1022569","126.60","Agency Staff","190486573","23/07/2018","Local Economy","Adult Lending Library","R1100"
"Wolverhampton City Council","http://opendatacommunities.org/id/metropolitan-district-council/wolverhampton","710928","Yoo Recruit LTD","CWC102257","489.24","Agency Staff","190486511","23/07/2018","Looked After Children","Adoption and Residence Team & Allowances","R1100"
"Wolverhampton City Council","http://opendatacommunities.org/id/metropolitan-district-council/wolverhampton","710928","Yoo Recruit LTD","CWC1022562","-53.24","Agency Staff","190486566","23/07/2018","Local Economy","Adult Lending Library","R1100"
"Wolverhampton City Council","http://opendatacommunities.org/id/metropolitan-district-council/wolverhampton","710928","Yoo Recruit LTD","CWC1022530","893.54","Agency Staff","190486534","23/07/2018","Independent Living Service","Adaptations Team","R1100"
"Wolverhampton City Council","http://opendatacommunities.org/id/metropolitan-district-council/wolverhampton","710928","Yoo Recruit LTD","CWC102259","984.00","Agency Staff","190486513","23/07/2018","Looked After Children","Adoption and Residence Team & Allowances","R1100"
"Wolverhampton City Council","http://opendatacommunities.org/id/metropolitan-district-council/wolverhampton","710928","Yoo Recruit LTD","CWC10225697","99.68","Agency Staff","190487201","23/07/2018","Visitor Economy","VEC - Casual & Agency Staff","R1100"
"Wolverhampton City Council","http://opendatacommunities.org/id/metropolitan-district-council/wolverhampton","710928","Yoo Recruit LTD","CWC10225699","218.05","Agency Staff","190487203","23/07/2018","Visitor Economy","VEC - Casual & Agency Staff","R1100"
"Wolverhampton City Council","http://opendatacommunities.org/id/metropolitan-district-council/wolverhampton","710928","Yoo Recruit LTD","CWC1022516","324.20","Agency Staff","190486520","23/07/2018","Specialist Support","Upper Pendeford Farm Short Breaks Centre","R1100"
"Wolverhampton City Council","http://opendatacommunities.org/id/metropolitan-district-council/wolverhampton","710928","Yoo Recruit LTD","CWC1022520","1,211.01","Agency Staff","190486524","23/07/2018","Looked After Children","LAC Transitions Team","R1100"
"Wolverhampton City Council","http://opendatacommunities.org/id/metropolitan-district-council/wolverhampton","710928","Yoo Recruit LTD","CWC1022521","40.40","Agency Staff","190486525","23/07/2018","Looked After Children","Looked After Team 1","R1100"
"Wolverhampton City Council","http://opendatacommunities.org/id/metropolitan-district-council/wolverhampton","710928","Yoo Recruit LTD","CWC1022517","372.83","Agency Staff","190486521","23/07/2018","Specialist Support","Upper Pendeford Farm Short Breaks Centre","R1100"
"Wolverhampton City Council","http://opendatacommunities.org/id/metropolitan-district-council/wolverhampton","710928","Yoo Recruit LTD","CWC1022525","2.25","Agency Staff","190486529","23/07/2018","Youth Offending","Youth Offending Team","R1100"
"Wolverhampton City Council","http://opendatacommunities.org/id/metropolitan-district-council/wolverhampton","710928","Yoo Recruit LTD","CWC1022545","1,200.00","Agency Staff","190486549","23/07/2018","Emergency Duty Team","Emergency Duty Team","R1100"
"Wolverhampton City Council","http://opendatacommunities.org/id/metropolitan-district-council/wolverhampton","710928","Yoo Recruit LTD","CWC1022557","278.10","Agency Staff","190486561","23/07/2018","Local Economy","Global Budgets","R1100"
"Wolverhampton City Council","http://opendatacommunities.org/id/metropolitan-district-council/wolverhampton","710928","Yoo Recruit LTD","CWC1022587","12.15","Agency Staff","190486591","23/07/2018","Adults Assessment & Care Management West","Hospital Team","R1100"
"Wolverhampton City Council","http://opendatacommunities.org/id/metropolitan-district-council/wolverhampton","710928","Yoo Recruit LTD","CWC1022565","49.28","Agency Staff","190486569","23/07/2018","Local Economy","Adult Lending Library","R1100"
"Wolverhampton City Council","http://opendatacommunities.org/id/metropolitan-district-council/wolverhampton","710928","Yoo Recruit LTD","CWC10225127","153.88","Agency Staff","190486631","23/07/2018","Leisure Services","Central Baths","R1100"
"Wolverhampton City Council","http://opendatacommunities.org/id/metropolitan-district-council/wolverhampton","710928","Yoo Recruit LTD","CWC10225111","99.98","Agency Staff","190486615","23/07/2018","Leisure Services","Bert Williams Leisure Centre","R1100"
"Wolverhampton City Council","http://opendatacommunities.org/id/metropolitan-district-council/wolverhampton","710928","Yoo Recruit LTD","CWC10225125","99.98","Agency Staff","190486629","23/07/2018","Leisure Services","Central Baths","R1100"
"Wolverhampton City Council","http://opendatacommunities.org/id/metropolitan-district-council/wolverhampton","710928","Yoo Recruit LTD","CWC10225115","166.38","Agency Staff","190486619","23/07/2018","Leisure Services","Bert Williams Leisure Centre","R1100"
"Wolverhampton City Council","http://opendatacommunities.org/id/metropolitan-district-council/wolverhampton","710928","Yoo Recruit LTD","CWC10225103","182.27","Agency Staff","190486607","23/07/2018","Leisure Services","Aldersley Leisure Village","R1100"
"Wolverhampton City Council","http://opendatacommunities.org/id/metropolitan-district-council/wolverhampton","710928","Yoo Recruit LTD","CWC1022596","510.87","Agency Staff","190486600","23/07/2018","Leisure Services","WV Active Catering","R1100"
"Wolverhampton City Council","http://opendatacommunities.org/id/metropolitan-district-council/wolverhampton","710928","Yoo Recruit LTD","CWC10225108","61.55","Agency Staff","190486612","23/07/2018","Leisure Services","Bert Williams Leisure Centre","R1100"
"Wolverhampton City Council","http://opendatacommunities.org/id/metropolitan-district-council/wolverhampton","710928","Yoo Recruit LTD","CWC10225110","93.31","Agency Staff","190486614","23/07/2018","Leisure Services","Bert Williams Leisure Centre","R1100"
"Wolverhampton City Council","http://opendatacommunities.org/id/metropolitan-district-council/wolverhampton","710928","Yoo Recruit LTD","CWC1022599","44.31","Agency Staff","190486603","23/07/2018","Leisure Services","Aldersley Leisure Village","R1100"
"Wolverhampton City Council","http://opendatacommunities.org/id/metropolitan-district-council/wolverhampton","710928","Yoo Recruit LTD","CWC10225165","122.10","Agency Staff","190486669","23/07/2018","Catering","Primary Schools Catering","R1100"
"Wolverhampton City Council","http://opendatacommunities.org/id/metropolitan-district-council/wolverhampton","710928","Yoo Recruit LTD","CWC10225169","122.10","Agency Staff","190486673","23/07/2018","Catering","Primary Schools Catering","R1100"
"Wolverhampton City Council","http://opendatacommunities.org/id/metropolitan-district-council/wolverhampton","710928","Yoo Recruit LTD","CWC10225147","-114.00","Agency Staff","190486651","23/07/2018","Catering","Primary Schools Catering","R1100"
"Wolverhampton City Council","http://opendatacommunities.org/id/metropolitan-district-council/wolverhampton","710928","Yoo Recruit LTD","CWC10225150","-114.00","Agency Staff","190486654","23/07/2018","Catering","Primary Schools Catering","R1100"
"Wolverhampton City Council","http://opendatacommunities.org/id/metropolitan-district-council/wolverhampton","710928","Yoo Recruit LTD","CWC10225120","356.16","Agency Staff","190486624","23/07/2018","Leisure Services","Bert Williams Leisure Centre","R1100"
"Wolverhampton City Council","http://opendatacommunities.org/id/metropolitan-district-council/wolverhampton","710928","Yoo Recruit LTD","CWC10225152","-91.20","Agency Staff","190486656","23/07/2018","Catering","Primary Schools Catering","R1100"
"Wolverhampton City Council","http://opendatacommunities.org/id/metropolitan-district-council/wolverhampton","710928","Yoo Recruit LTD","CWC10225187","-91.44","Agency Staff","190486691","23/07/2018","Catering","Other Catering - General Overheads","R1100"
"Wolverhampton City Council","http://opendatacommunities.org/id/metropolitan-district-council/wolverhampton","710928","Yoo Recruit LTD","CWC10225157","97.68","Agency Staff","190486661","23/07/2018","Catering","Primary Schools Catering","R1100"
"Wolverhampton City Council","http://opendatacommunities.org/id/metropolitan-district-council/wolverhampton","710928","Yoo Recruit LTD","CWC10225182","-114.30","Agency Staff","190486686","23/07/2018","Catering","Other Catering - General Overheads","R1100"
"Wolverhampton City Council","http://opendatacommunities.org/id/metropolitan-district-council/wolverhampton","710928","Yoo Recruit LTD","CWC10225200","122.20","Agency Staff","190486704","23/07/2018","Catering","Other Catering - General Overheads","R1100"
"Wolverhampton City Council","http://opendatacommunities.org/id/metropolitan-district-council/wolverhampton","710928","Yoo Recruit LTD","CWC10225208","122.20","Agency Staff","190486712","23/07/2018","Catering","Other Catering - General Overheads","R1100"
"Wolverhampton City Council","http://opendatacommunities.org/id/metropolitan-district-council/wolverhampton","710928","Yoo Recruit LTD","CWC10225213","199.65","Agency Staff","190486717","23/07/2018","Customer Services","City Direct","R1100"
"Wolverhampton City Council","http://opendatacommunities.org/id/metropolitan-district-council/wolverhampton","710928","Yoo Recruit LTD","CWC10225177","55.44","Agency Staff","190486681","23/07/2018","Catering","Civic Centre Catering","R1100"
"Wolverhampton City Council","http://opendatacommunities.org/id/metropolitan-district-council/wolverhampton","710928","Yoo Recruit LTD","CWC10225188","-68.58","Agency Staff","190486692","23/07/2018","Catering","Other Catering - General Overheads","R1100"
"Wolverhampton City Council","http://opendatacommunities.org/id/metropolitan-district-council/wolverhampton","710928","Yoo Recruit LTD","CWC10225173","36.66","Agency Staff","190486677","23/07/2018","Catering","Civic Centre Catering","R1100"
"Wolverhampton City Council","http://opendatacommunities.org/id/metropolitan-district-council/wolverhampton","710928","Yoo Recruit LTD","CWC10225190","73.32","Agency Staff","190486694","23/07/2018","Catering","Other Catering - General Overheads","R1100"
"Wolverhampton City Council","http://opendatacommunities.org/id/metropolitan-district-council/wolverhampton","710928","Yoo Recruit LTD","CWC10225210","124.60","Agency Staff","190486714","23/07/2018","Catering","Other Catering - General Overheads","R1100"
"Wolverhampton City Council","http://opendatacommunities.org/id/metropolitan-district-council/wolverhampton","710928","Yoo Recruit LTD","CWC10225236","119.15","Agency Staff","190486740","23/07/2018","Cleaning","Cleaning of Buildings - General","R1100"
"Wolverhampton City Council","http://opendatacommunities.org/id/metropolitan-district-council/wolverhampton","710928","Yoo Recruit LTD","CWC10225222","499.13","Agency Staff","190486726","23/07/2018","Customer Services","City Direct","R1100"
"Wolverhampton City Council","http://opendatacommunities.org/id/metropolitan-district-council/wolverhampton","710928","Yoo Recruit LTD","CWC10225194","97.76","Agency Staff","190486698","23/07/2018","Catering","Other Catering - General Overheads","R1100"
"Wolverhampton City Council","http://opendatacommunities.org/id/metropolitan-district-council/wolverhampton","710928","Yoo Recruit LTD","CWC10225233","48.84","Agency Staff","190486737","23/07/2018","Cleaning","Cleaning of Buildings - General","R1100"
"Wolverhampton City Council","http://opendatacommunities.org/id/metropolitan-district-council/wolverhampton","710928","Yoo Recruit LTD","CWC10225235","109.98","Agency Staff","190486739","23/07/2018","Cleaning","Cleaning of Buildings - General","R1100"
"Wolverhampton City Council","http://opendatacommunities.org/id/metropolitan-district-council/wolverhampton","710928","Yoo Recruit LTD","CWC10225218","425.92","Agency Staff","190486722","23/07/2018","Customer Services","City Direct","R1100"
"Wolverhampton City Council","http://opendatacommunities.org/id/metropolitan-district-council/wolverhampton","710928","Yoo Recruit LTD","CWC10225231","796.24","Agency Staff","190486735","23/07/2018","Customer Services","City Direct","R1100"
"Wolverhampton City Council","http://opendatacommunities.org/id/metropolitan-district-council/wolverhampton","710928","Yoo Recruit LTD","CWC10225204","122.20","Agency Staff","190486708","23/07/2018","Catering","Other Catering - General Overheads","R1100"
"Wolverhampton City Council","http://opendatacommunities.org/id/metropolitan-district-council/wolverhampton","710928","Yoo Recruit LTD","CWC10225239","146.64","Agency Staff","190486743","23/07/2018","Cleaning","Cleaning of Buildings - General","R1100"
"Wolverhampton City Council","http://opendatacommunities.org/id/metropolitan-district-council/wolverhampton","710928","Yoo Recruit LTD","CWC10225230","615.67","Agency Staff","190486734","23/07/2018","Customer Services","City Direct","R1100"
"Wolverhampton City Council","http://opendatacommunities.org/id/metropolitan-district-council/wolverhampton","710928","Yoo Recruit LTD","CWC10225292","592.24","Agency Staff","190486796","23/07/2018","Licensing","Licensing - Private Hire Vehicles","R1100"
"Wolverhampton City Council","http://opendatacommunities.org/id/metropolitan-district-council/wolverhampton","710928","Yoo Recruit LTD","CWC10225310","-366.48","Agency Staff","190486814","23/07/2018","Adult Education","Creative Studies Delivery Area","R1100"
"Wolverhampton City Council","http://opendatacommunities.org/id/metropolitan-district-council/wolverhampton","710928","Yoo Recruit LTD","CWC10225304","-366.48","Agency Staff","190486808","23/07/2018","Adult Education","Creative Studies Delivery Area","R1100"
"Wolverhampton City Council","http://opendatacommunities.org/id/metropolitan-district-council/wolverhampton","710928","Yoo Recruit LTD","CWC10225308","-366.48","Agency Staff","190486812","23/07/2018","Adult Education","Creative Studies Delivery Area","R1100"
"Wolverhampton City Council","http://opendatacommunities.org/id/metropolitan-district-council/wolverhampton","710928","Yoo Recruit LTD","CWC10225297","459.17","Agency Staff","190486801","23/07/2018","Adult Education","Caretakers","R1100"
"Wolverhampton City Council","http://opendatacommunities.org/id/metropolitan-district-council/wolverhampton","710928","Yoo Recruit LTD","CWC10225260","331.14","Agency Staff","190486764","23/07/2018","Corporate Business Support","Corporate Programmes","R1100"
"Wolverhampton City Council","http://opendatacommunities.org/id/metropolitan-district-council/wolverhampton","710928","Yoo Recruit LTD","CWC10225258","3,188.15","Agency Staff","190486762","23/07/2018","ICTS","Application Management","R1100"
"Wolverhampton City Council","http://opendatacommunities.org/id/metropolitan-district-council/wolverhampton","710928","Yoo Recruit LTD","CWC10225262","73.26","Agency Staff","190486766","23/07/2018","Transportation","Passenger Transport - General","R1100"
"Wolverhampton City Council","http://opendatacommunities.org/id/metropolitan-district-council/wolverhampton","710928","Yoo Recruit LTD","CWC10225265","183.90","Agency Staff","190486769","23/07/2018","Parking Services","Shopmobility","R1100"
"Wolverhampton City Council","http://opendatacommunities.org/id/metropolitan-district-council/wolverhampton","710928","Yoo Recruit LTD","CWC10225273","1,209.84","Agency Staff","190486777","23/07/2018","Strategic Finance","Strategic Finance","R1100"
"Wolverhampton City Council","http://opendatacommunities.org/id/metropolitan-district-council/wolverhampton","710928","Yoo Recruit LTD","CWC10225269","46.35","Agency Staff","190486773","23/07/2018","Public Service Reform","Register Office","R1100"
"Wolverhampton City Council","http://opendatacommunities.org/id/metropolitan-district-council/wolverhampton","710928","Yoo Recruit LTD","CWC10225280","984.47","Agency Staff","190486784","23/07/2018","Legal Services","Legal Services","R1100"
"Wolverhampton City Council","http://opendatacommunities.org/id/metropolitan-district-council/wolverhampton","710928","Yoo Recruit LTD","CWC10225253","183.15","Agency Staff","190486757","23/07/2018","Cleaning","External Cleaning","R1100"
"Wolverhampton City Council","http://opendatacommunities.org/id/metropolitan-district-council/wolverhampton","710928","Yoo Recruit LTD","CWC10225300","352.95","Agency Staff","190486804","23/07/2018","Adult Education","Direct Delivery Team ( L.& D.)","R1100"
"Wolverhampton City Council","http://opendatacommunities.org/id/metropolitan-district-council/wolverhampton","710928","Yoo Recruit LTD","CWC10225286","1,110.40","Agency Staff","190486790","23/07/2018","Housing","Housing Regeneration - Strategy & Development","R1100"
"Wolverhampton City Council","http://opendatacommunities.org/id/metropolitan-district-council/wolverhampton","710928","Yoo Recruit LTD","CWC10225291","491.29","Agency Staff","190486795","23/07/2018","Licensing","Licensing - Private Hire Vehicles","R1100"
"Wolverhampton City Council","http://opendatacommunities.org/id/metropolitan-district-council/wolverhampton","710928","Yoo Recruit LTD","CWC10225320","383.94","Agency Staff","190486824","23/07/2018","Adult Education","Creative Studies Delivery Area","R1100"
"Wolverhampton City Council","http://opendatacommunities.org/id/metropolitan-district-council/wolverhampton","710928","Yoo Recruit LTD","CWC10225316","383.94","Agency Staff","190486820","23/07/2018","Adult Education","Creative Studies Delivery Area","R1100"
"Wolverhampton City Council","http://opendatacommunities.org/id/metropolitan-district-council/wolverhampton","710928","Yoo Recruit LTD","CWC10225324","-108.86","Agency Staff","190486828","23/07/2018","Adult Education","Educational Studies Delivery Area","R1100"
"Wolverhampton City Council","http://opendatacommunities.org/id/metropolitan-district-council/wolverhampton","710928","Yoo Recruit LTD","CWC10225328","-108.86","Agency Staff","190486832","23/07/2018","Adult Education","Educational Studies Delivery Area","R1100"
"Wolverhampton City Council","http://opendatacommunities.org/id/metropolitan-district-council/wolverhampton","710928","Yoo Recruit LTD","CWC10225336","95.09","Agency Staff","190486840","23/07/2018","Adult Education","Educational Studies Delivery Area","R1100"
"Wolverhampton City Council","http://opendatacommunities.org/id/metropolitan-district-council/wolverhampton","710928","Yoo Recruit LTD","CWC10225332","-90.00","Agency Staff","190486836","23/07/2018","Adult Education","Educational Studies Delivery Area","R1100"
"Wolverhampton City Council","http://opendatacommunities.org/id/metropolitan-district-council/wolverhampton","710928","Yoo Recruit LTD","CWC10225364","-324.27","Agency Staff","190486868","23/07/2018","Adult Education","Foundation Studies Delivery Area","R1100"
"Wolverhampton City Council","http://opendatacommunities.org/id/metropolitan-district-council/wolverhampton","710928","Yoo Recruit LTD","CWC10225363","-332.24","Agency Staff","190486867","23/07/2018","Adult Education","Foundation Studies Delivery Area","R1100"
"Wolverhampton City Council","http://opendatacommunities.org/id/metropolitan-district-council/wolverhampton","710928","Yoo Recruit LTD","CWC10225359","-381.46","Agency Staff","190486863","23/07/2018","Adult Education","Foundation Studies Delivery Area","R1100"
"Wolverhampton City Council","http://opendatacommunities.org/id/metropolitan-district-council/wolverhampton","710928","Yoo Recruit LTD","CWC10225368","-324.27","Agency Staff","190486872","23/07/2018","Adult Education","Foundation Studies Delivery Area","R1100"
"Wolverhampton City Council","http://opendatacommunities.org/id/metropolitan-district-council/wolverhampton","710928","Yoo Recruit LTD","CWC10225546","5.48","Agency Staff","190487050","23/07/2018","School Planning & Resources","Music Support Team","R1100"
"Wolverhampton City Council","http://opendatacommunities.org/id/metropolitan-district-council/wolverhampton","710928","Yoo Recruit LTD","CWC10225344","-1,003.89","Agency Staff","190486848","23/07/2018","Adult Education","Foundation Studies Delivery Area","R1100"
"Wolverhampton City Council","http://opendatacommunities.org/id/metropolitan-district-council/wolverhampton","710928","Yoo Recruit LTD","CWC10225349","-544.28","Agency Staff","190486853","23/07/2018","Adult Education","Foundation Studies Delivery Area","R1100"
"Wolverhampton City Council","http://opendatacommunities.org/id/metropolitan-district-council/wolverhampton","710928","Yoo Recruit LTD","CWC10225383","-235.85","Agency Staff","190486887","23/07/2018","Adult Education","Foundation Studies Delivery Area","R1100"
"Wolverhampton City Council","http://opendatacommunities.org/id/metropolitan-district-council/wolverhampton","710928","Yoo Recruit LTD","CWC10225386","-190.73","Agency Staff","190486890","23/07/2018","Adult Education","Foundation Studies Delivery Area","R1100"
"Wolverhampton City Council","http://opendatacommunities.org/id/metropolitan-district-council/wolverhampton","710928","Yoo Recruit LTD","CWC10225389","-172.27","Agency Staff","190486893","23/07/2018","Adult Education","Foundation Studies Delivery Area","R1100"
"Wolverhampton City Council","http://opendatacommunities.org/id/metropolitan-district-council/wolverhampton","710928","Yoo Recruit LTD","CWC10225388","-184.58","Agency Staff","190486892","23/07/2018","Adult Education","Foundation Studies Delivery Area","R1100"
"Wolverhampton City Council","http://opendatacommunities.org/id/metropolitan-district-council/wolverhampton","710928","Yoo Recruit LTD","CWC10225385","-203.03","Agency Staff","190486889","23/07/2018","Adult Education","Foundation Studies Delivery Area","R1100"
"Wolverhampton City Council","http://opendatacommunities.org/id/metropolitan-district-council/wolverhampton","710928","Yoo Recruit LTD","CWC10225437","339.39","Agency Staff","190486941","23/07/2018","Adult Education","Foundation Studies Delivery Area","R1100"
"Wolverhampton City Council","http://opendatacommunities.org/id/metropolitan-district-council/wolverhampton","710928","Yoo Recruit LTD","CWC10225432","320.54","Agency Staff","190486936","23/07/2018","Adult Education","Foundation Studies Delivery Area","R1100"
"Wolverhampton City Council","http://opendatacommunities.org/id/metropolitan-district-council/wolverhampton","710928","Yoo Recruit LTD","CWC10225431","300.57","Agency Staff","190486935","23/07/2018","Adult Education","Foundation Studies Delivery Area","R1100"
"Wolverhampton City Council","http://opendatacommunities.org/id/metropolitan-district-council/wolverhampton","710928","Yoo Recruit LTD","CWC10225440","339.39","Agency Staff","190486944","23/07/2018","Adult Education","Foundation Studies Delivery Area","R1100"
"Wolverhampton City Council","http://opendatacommunities.org/id/metropolitan-district-council/wolverhampton","710928","Yoo Recruit LTD","CWC10225407","150.84","Agency Staff","190486911","23/07/2018","Adult Education","Foundation Studies Delivery Area","R1100"
"Wolverhampton City Council","http://opendatacommunities.org/id/metropolitan-district-council/wolverhampton","710928","Yoo Recruit LTD","CWC10225403","75.42","Agency Staff","190486907","23/07/2018","Adult Education","Foundation Studies Delivery Area","R1100"
"Wolverhampton City Council","http://opendatacommunities.org/id/metropolitan-district-council/wolverhampton","710928","Yoo Recruit LTD","CWC10225410","150.84","Agency Staff","190486914","23/07/2018","Adult Education","Foundation Studies Delivery Area","R1100"
"Wolverhampton City Council","http://opendatacommunities.org/id/metropolitan-district-council/wolverhampton","710928","Yoo Recruit LTD","CWC10225497","78.34","Agency Staff","190487001","23/07/2018","Adult Education","Language Studies Delivery Area","R1100"
"Wolverhampton City Council","http://opendatacommunities.org/id/metropolitan-district-council/wolverhampton","710928","Yoo Recruit LTD","CWC10225413","179.06","Agency Staff","190486917","23/07/2018","Adult Education","Foundation Studies Delivery Area","R1100"
"Wolverhampton City Council","http://opendatacommunities.org/id/metropolitan-district-council/wolverhampton","710928","Yoo Recruit LTD","CWC10225494","-74.78","Agency Staff","190486998","23/07/2018","Adult Education","Language Studies Delivery Area","R1100"
"Wolverhampton City Council","http://opendatacommunities.org/id/metropolitan-district-council/wolverhampton","710928","Yoo Recruit LTD","CWC10225503","125.70","Agency Staff","190487007","23/07/2018","Adult Education","Language Studies Delivery Area","R1100"
"Wolverhampton City Council","http://opendatacommunities.org/id/metropolitan-district-council/wolverhampton","710928","Yoo Recruit LTD","CWC10225542","179.95","Agency Staff","190487046","23/07/2018","Adult Education","Learner Services","R1100"
"Wolverhampton City Council","http://opendatacommunities.org/id/metropolitan-district-council/wolverhampton","710928","Yoo Recruit LTD","CWC10225526","1,030.74","Agency Staff","190487030","23/07/2018","Adult Education","Language Studies Delivery Area","R1100"
"Wolverhampton City Council","http://opendatacommunities.org/id/metropolitan-district-council/wolverhampton","710928","Yoo Recruit LTD","CWC10225543","217.18","Agency Staff","190487047","23/07/2018","Adult Education","Learner Services","R1100"
"Wolverhampton City Council","http://opendatacommunities.org/id/metropolitan-district-council/wolverhampton","710928","Yoo Recruit LTD","CWC10225418","226.26","Agency Staff","190486922","23/07/2018","Adult Education","Foundation Studies Delivery Area","R1100"
"Wolverhampton City Council","http://opendatacommunities.org/id/metropolitan-district-council/wolverhampton","710928","Yoo Recruit LTD","CWC10225544","1.74","Agency Staff","190487048","23/07/2018","School Planning & Resources","Music Support Team","R1100"
"Wolverhampton City Council","http://opendatacommunities.org/id/metropolitan-district-council/wolverhampton","710928","Yoo Recruit LTD","CWC10225537","62.85","Agency Staff","190487041","23/07/2018","Adult Education","Learner Services","R1100"
"Wolverhampton City Council","http://opendatacommunities.org/id/metropolitan-district-council/wolverhampton","710928","Yoo Recruit LTD","CWC10225416","198.25","Agency Staff","190486920","23/07/2018","Adult Education","Foundation Studies Delivery Area","R1100"
"Wolverhampton City Council","http://opendatacommunities.org/id/metropolitan-district-council/wolverhampton","710928","Yoo Recruit LTD","CWC10225541","125.70","Agency Staff","190487045","23/07/2018","Adult Education","Learner Services","R1100"
"Wolverhampton City Council","http://opendatacommunities.org/id/metropolitan-district-council/wolverhampton","710928","Yoo Recruit LTD","CWC10225425","287.78","Agency Staff","190486929","23/07/2018","Adult Education","Foundation Studies Delivery Area","R1100"
"Wolverhampton City Council","http://opendatacommunities.org/id/metropolitan-district-council/wolverhampton","710928","Yoo Recruit LTD","CWC10225422","251.40","Agency Staff","190486926","23/07/2018","Adult Education","Foundation Studies Delivery Area","R1100"
"Wolverhampton City Council","http://opendatacommunities.org/id/metropolitan-district-council/wolverhampton","710928","Yoo Recruit LTD","CWC10225455","452.52","Agency Staff","190486959","23/07/2018","Adult Education","Foundation Studies Delivery Area","R1100"
"Wolverhampton City Council","http://opendatacommunities.org/id/metropolitan-district-council/wolverhampton","710928","Yoo Recruit LTD","CWC10225483","-241.90","Agency Staff","190486987","23/07/2018","Adult Education","Language Studies Delivery Area","R1100"
"Wolverhampton City Council","http://opendatacommunities.org/id/metropolitan-district-council/wolverhampton","710928","Yoo Recruit LTD","CWC10225481","-423.33","Agency Staff","190486985","23/07/2018","Adult Education","Language Studies Delivery Area","R1100"
"Wolverhampton City Council","http://opendatacommunities.org/id/metropolitan-district-council/wolverhampton","710928","Yoo Recruit LTD","CWC10225446","377.10","Agency Staff","190486950","23/07/2018","Adult Education","Foundation Studies Delivery Area","R1100"
"Wolverhampton City Council","http://opendatacommunities.org/id/metropolitan-district-council/wolverhampton","710928","Yoo Recruit LTD","CWC10225479","-453.56","Agency Staff","190486983","23/07/2018","Adult Education","Language Studies Delivery Area","R1100"
"Wolverhampton City Council","http://opendatacommunities.org/id/metropolitan-district-council/wolverhampton","710928","Yoo Recruit LTD","CWC10225487","-120.95","Agency Staff","190486991","23/07/2018","Adult Education","Language Studies Delivery Area","R1100"
"Wolverhampton City Council","http://opendatacommunities.org/id/metropolitan-district-council/wolverhampton","710928","Yoo Recruit LTD","CWC10225533","-60.48","Agency Staff","190487037","23/07/2018","Adult Education","Learner Services","R1100"
"Wolverhampton City Council","http://opendatacommunities.org/id/metropolitan-district-council/wolverhampton","710928","Yoo Recruit LTD","CWC10225462","565.65","Agency Staff","190486966","23/07/2018","Adult Education","Foundation Studies Delivery Area","R1100"
"Wolverhampton City Council","http://opendatacommunities.org/id/metropolitan-district-council/wolverhampton","710928","Yoo Recruit LTD","CWC10225463","569.16","Agency Staff","190486967","23/07/2018","Adult Education","Foundation Studies Delivery Area","R1100"
"Wolverhampton City Council","http://opendatacommunities.org/id/metropolitan-district-council/wolverhampton","710928","Yoo Recruit LTD","CWC10225475","-453.56","Agency Staff","190486979","23/07/2018","Adult Education","Language Studies Delivery Area","R1100"
"Wolverhampton City Council","http://opendatacommunities.org/id/metropolitan-district-council/wolverhampton","710928","Yoo Recruit LTD","CWC10225468","-925.27","Agency Staff","190486972","23/07/2018","Adult Education","Language Studies Delivery Area","R1100"
"Wolverhampton City Council","http://opendatacommunities.org/id/metropolitan-district-council/wolverhampton","710928","Yoo Recruit LTD","CWC10225472","-810.37","Agency Staff","190486976","23/07/2018","Adult Education","Language Studies Delivery Area","R1100"
"Wolverhampton City Council","http://opendatacommunities.org/id/metropolitan-district-council/wolverhampton","710928","Yoo Recruit LTD","CWC10225511","471.38","Agency Staff","190487015","23/07/2018","Adult Education","Language Studies Delivery Area","R1100"
"Wolverhampton City Council","http://opendatacommunities.org/id/metropolitan-district-council/wolverhampton","710928","Yoo Recruit LTD","CWC10225518","659.93","Agency Staff","190487022","23/07/2018","Adult Education","Language Studies Delivery Area","R1100"
"Wolverhampton City Council","http://opendatacommunities.org/id/metropolitan-district-council/wolverhampton","710928","Yoo Recruit LTD","CWC10229232","504.75","Agency Staff","190490780","27/07/2018","Licensing","Licensing - Private Hire Vehicles","R1100"
"Wolverhampton City Council","http://opendatacommunities.org/id/metropolitan-district-council/wolverhampton","710928","Yoo Recruit LTD","CWC10229280","50.48","Agency Staff","190490828","27/07/2018","Special Educational Needs","Special - Transport","R1100"
"Wolverhampton City Council","http://opendatacommunities.org/id/metropolitan-district-council/wolverhampton","710928","Yoo Recruit LTD","CWC10229293","61.05","Agency Staff","190490841","27/07/2018","Visitor Economy","Civic Halls Non-Direct Event Management Account","R1100"
"Wolverhampton City Council","http://opendatacommunities.org/id/metropolitan-district-council/wolverhampton","710928","Yoo Recruit LTD","CWC1022981","61.55","Agency Staff","190490629","27/07/2018","Leisure Services","Bert Williams Leisure Centre","R1100"
"Wolverhampton City Council","http://opendatacommunities.org/id/metropolitan-district-council/wolverhampton","710928","Yoo Recruit LTD","CWC1022986","53.32","Agency Staff","190490634","27/07/2018","Leisure Services","Bert Williams Leisure Centre","R1100"
"Wolverhampton City Council","http://opendatacommunities.org/id/metropolitan-district-council/wolverhampton","710928","Yoo Recruit LTD","CWC10229159","559.02","Agency Staff","190490707","27/07/2018","Customer Services","City Direct","R1100"
"Wolverhampton City Council","http://opendatacommunities.org/id/metropolitan-district-council/wolverhampton","710928","Yoo Recruit LTD","CWC10229150","499.13","Agency Staff","190490698","27/07/2018","Customer Services","City Direct","R1100"
"Wolverhampton City Council","http://opendatacommunities.org/id/metropolitan-district-council/wolverhampton","710928","Yoo Recruit LTD","CWC10229222","63.00","Agency Staff","190490770","27/07/2018","Public Protection","EHTS Staffing","R1100"
"Wolverhampton City Council","http://opendatacommunities.org/id/metropolitan-district-council/wolverhampton","710928","Yoo Recruit LTD","CWC10229218","93.31","Agency Staff","190490766","27/07/2018","Visitor Economy","Education And Access","R1100"
"Wolverhampton City Council","http://opendatacommunities.org/id/metropolitan-district-council/wolverhampton","710928","Yoo Recruit LTD","CWC10229234","722.26","Agency Staff","190490782","27/07/2018","Adult Education","Admin & Support","R1100"
"Wolverhampton City Council","http://opendatacommunities.org/id/metropolitan-district-council/wolverhampton","710928","Yoo Recruit LTD","CWC10229317","912.45","Agency Staff","190490865","27/07/2018","Human Resources","HR Investigations","R1100"
"Wolverhampton City Council","http://opendatacommunities.org/id/metropolitan-district-council/wolverhampton","710928","Yoo Recruit LTD","CWC10229303","110.16","Agency Staff","190490851","27/07/2018","Leisure Services","WV Active Business Support","R1100"
"Wolverhampton City Council","http://opendatacommunities.org/id/metropolitan-district-council/wolverhampton","710928","Yoo Recruit LTD","CWC10229396","80.99","Agency Staff","190490944","27/07/2018","Visitor Economy","VEC - Casual & Agency Staff","R1100"
"Wolverhampton City Council","http://opendatacommunities.org/id/metropolitan-district-council/wolverhampton","710928","Yoo Recruit LTD","CWC1022911","648.00","Agency Staff","190490559","27/07/2018","Looked After Children","LAC Education Team (LACE)","R1100"
"Wolverhampton City Council","http://opendatacommunities.org/id/metropolitan-district-council/wolverhampton","710928","Yoo Recruit LTD","CWC1022914","1,101.24","Agency Staff","190490562","27/07/2018","Youth Offending","Youth Offending Team","R1100"
"Wolverhampton City Council","http://opendatacommunities.org/id/metropolitan-district-council/wolverhampton","710928","Yoo Recruit LTD","CWC1022977","73.86","Agency Staff","190490625","27/07/2018","Leisure Services","Aldersley Leisure Village","R1100"
"Wolverhampton City Council","http://opendatacommunities.org/id/metropolitan-district-council/wolverhampton","710928","Yoo Recruit LTD","CWC1022987","73.21","Agency Staff","190490635","27/07/2018","Leisure Services","Bert Williams Leisure Centre","R1100"
"Wolverhampton City Council","http://opendatacommunities.org/id/metropolitan-district-council/wolverhampton","710928","Yoo Recruit LTD","CWC1022988","104.64","Agency Staff","190490636","27/07/2018","Leisure Services","Bert Williams Leisure Centre","R1100"
"Wolverhampton City Council","http://opendatacommunities.org/id/metropolitan-district-council/wolverhampton","710928","Yoo Recruit LTD","CWC10229176","91.58","Agency Staff","190490724","27/07/2018","Cleaning","Cleaning of Buildings - General","R1100"
"Wolverhampton City Council","http://opendatacommunities.org/id/metropolitan-district-council/wolverhampton","710928","Yoo Recruit LTD","CWC10229124","82.42","Agency Staff","190490672","27/07/2018","Catering","Education Catering - General Overheads","R1100"
"Wolverhampton City Council","http://opendatacommunities.org/id/metropolitan-district-council/wolverhampton","710928","Yoo Recruit LTD","CWC10229122","107.38","Agency Staff","190490670","27/07/2018","Safeguarding","MCA General","R1100"
"Wolverhampton City Council","http://opendatacommunities.org/id/metropolitan-district-council/wolverhampton","710928","Yoo Recruit LTD","CWC10229139","99.60","Agency Staff","190490687","27/07/2018","Catering","Other Catering - General Overheads","R1100"
"Wolverhampton City Council","http://opendatacommunities.org/id/metropolitan-district-council/wolverhampton","710928","Yoo Recruit LTD","CWC1022167","215.22","Agency Staff","190483379","11/07/2018","Local Economy","Adult Lending Library","R1100"
"Wolverhampton City Council","http://opendatacommunities.org/id/metropolitan-district-council/wolverhampton","710928","Yoo Recruit LTD","CWC102139","492.88","Agency Staff","190476242","04/07/2018","Looked After Children","Head of Service - LAC","R1100"
"Wolverhampton City Council","http://opendatacommunities.org/id/metropolitan-district-council/wolverhampton","710928","Yoo Recruit LTD","CWC102131974","493.21","Agency Staff","190478207","04/07/2018","Customer Services","City Direct","R1100"
"Wolverhampton City Council","http://opendatacommunities.org/id/metropolitan-district-council/wolverhampton","710928","Yoo Recruit LTD","CWC102134587","500.61","Agency Staff","190480820","04/07/2018","Visitor Economy","VEC - Casual & Agency Staff","R1100"
"Wolverhampton City Council","http://opendatacommunities.org/id/metropolitan-district-council/wolverhampton","710928","Yoo Recruit LTD","CWC10213615","196.96","Agency Staff","190476848","04/07/2018","Leisure Services","WV Active Catering","R1100"
"Wolverhampton City Council","http://opendatacommunities.org/id/metropolitan-district-council/wolverhampton","710928","Yoo Recruit LTD","CWC102134564","299.04","Agency Staff","190480797","04/07/2018","Visitor Economy","VEC - Casual & Agency Staff","R1100"
"Wolverhampton City Council","http://opendatacommunities.org/id/metropolitan-district-council/wolverhampton","710928","Yoo Recruit LTD","CWC102134568","299.04","Agency Staff","190480801","04/07/2018","Visitor Economy","VEC - Casual & Agency Staff","R1100"
"Wolverhampton City Council","http://opendatacommunities.org/id/metropolitan-district-council/wolverhampton","710928","Yoo Recruit LTD","CWC102134572","299.04","Agency Staff","190480805","04/07/2018","Visitor Economy","VEC - Casual & Agency Staff","R1100"
"Wolverhampton City Council","http://opendatacommunities.org/id/metropolitan-district-council/wolverhampton","710928","Yoo Recruit LTD","CWC102131970","492.47","Agency Staff","190478203","04/07/2018","Customer Services","City Direct","R1100"
"Wolverhampton City Council","http://opendatacommunities.org/id/metropolitan-district-council/wolverhampton","710942","The Beaudesert Trust","266-002","143.96","Equipment - Purchase","130221723","06/07/2018","Schools","The King�s Church of England School","R4000"
"Wolverhampton City Council","http://opendatacommunities.org/id/metropolitan-district-council/wolverhampton","710958","BT Redcare","CM647677310401","131.80","Comms - Telephone Rental","130220589","04/07/2018","Visitor Economy","Archives","R4504"
"Wolverhampton City Council","http://opendatacommunities.org/id/metropolitan-district-council/wolverhampton","710968","Something Different (UK)","19873","200.40","Marketing \ Non-staff advertising","130220310","18/07/2018","Corporate Communications","Communications & Marketing - General","R4317"
"Wolverhampton City Council","http://opendatacommunities.org/id/metropolitan-district-council/wolverhampton","710968","Something Different (UK)","19873","15.00","Marketing \ Non-staff advertising","130220310","18/07/2018","Corporate Communications","Communications & Marketing - General","R4317"
"Wolverhampton City Council","http://opendatacommunities.org/id/metropolitan-district-council/wolverhampton","710968","Something Different (UK)","19831","42.00","Marketing \ Non-staff advertising","130219660","04/07/2018","Skills","Work Box","R4317"
"Wolverhampton City Council","http://opendatacommunities.org/id/metropolitan-district-council/wolverhampton","710968","Something Different (UK)","19831","18.00","Marketing \ Non-staff advertising","130219660","04/07/2018","Skills","Work Box","R4317"
"Wolverhampton City Council","http://opendatacommunities.org/id/metropolitan-district-council/wolverhampton","710968","Something Different (UK)","19952","90.00","Marketing \ Non-staff advertising","130221921","25/07/2018","Central Corporate Budgets","Miscellaneous Corporate Costs","R4317"
"Wolverhampton City Council","http://opendatacommunities.org/id/metropolitan-district-council/wolverhampton","710968","Something Different (UK)","19951","82.32","Clothing / Uniforms","130221920","25/07/2018","Public Service Reform","Register Office","R4201"
"Wolverhampton City Council","http://opendatacommunities.org/id/metropolitan-district-council/wolverhampton","710968","Something Different (UK)","19841","606.00","Stationery","130219803","13/07/2018","Customer Services","City Direct","R4308"
"Wolverhampton City Council","http://opendatacommunities.org/id/metropolitan-district-council/wolverhampton","710972","Perry Hall Multi-Academy Trust","Berrybrook Academy Early Years Payment Summer Term 2018-19","33,422.40","Grant Payments","190484559","13/07/2018","Central Education","Academy Early years","R4700"
"Wolverhampton City Council","http://opendatacommunities.org/id/metropolitan-district-council/wolverhampton","710972","Perry Hall Multi-Academy Trust","Berrybrook Academy Early Years Payment Autumn Term Interim 2018-19","11,761.05","Grant Payments","190484583","13/07/2018","Central Education","Academy Early years","R4700"
"Wolverhampton City Council","http://opendatacommunities.org/id/metropolitan-district-council/wolverhampton","710981","Netcall Telecom Ltd","MINV009305","8,226.00","Computing - Purchase of Software","130220700","25/07/2018","Customer Services","City Direct","R4531"
"Wolverhampton City Council","http://opendatacommunities.org/id/metropolitan-district-council/wolverhampton","711006","Children United Ltd","TFT Summer 2018 Inst 2","6,570.96","TPP - Private Nursery Education Funding","190489836","25/07/2018","Early Years","Early Years Entitlement Funding for Disadvantaged 2 Year Olds","R5035"
"Wolverhampton City Council","http://opendatacommunities.org/id/metropolitan-district-council/wolverhampton","711006","Children United Ltd","EYPP Summer 2018","286.20","TPP - Private Nursery Education Funding","190489844","25/07/2018","Early Years","Early Years Pupil Premium","R5035"
"Wolverhampton City Council","http://opendatacommunities.org/id/metropolitan-district-council/wolverhampton","711006","Children United Ltd","NEF Summer 2018 INST 2","12,354.75","TPP - Private Nursery Education Funding","190489824","25/07/2018","Early Years","Early Years Universal Entitlement for 3 and 4 Year Olds","R5035"
"Wolverhampton City Council","http://opendatacommunities.org/id/metropolitan-district-council/wolverhampton","711008","Stephanie Moore","NEF Summer 2018 INST 2","918.00","TPP - Private Nursery Education Funding","190489824","25/07/2018","Early Years","Early Years Universal Entitlement for 3 and 4 Year Olds","R5035"
"Wolverhampton City Council","http://opendatacommunities.org/id/metropolitan-district-council/wolverhampton","711010","Network Ventures Ltd","076v170643","1,380.00","Services - Professional Fees","190484247","13/07/2018","ICTS","Strategic ICTS (ICT Service Budget)","R4400"
"Wolverhampton City Council","http://opendatacommunities.org/id/metropolitan-district-council/wolverhampton","711010","Network Ventures Ltd","076v170568","1,725.00","Services - Professional Fees","190484246","13/07/2018","ICTS","Strategic ICTS (ICT Service Budget)","R4400"
"Wolverhampton City Council","http://opendatacommunities.org/id/metropolitan-district-council/wolverhampton","711010","Network Ventures Ltd","076v170503","1,725.00","Services - Professional Fees","190484245","13/07/2018","ICTS","Strategic ICTS (ICT Service Budget)","R4400"
"Wolverhampton City Council","http://opendatacommunities.org/id/metropolitan-district-council/wolverhampton","711010","Network Ventures Ltd","076v170305","1,380.00","Services - Professional Fees","190484242","13/07/2018","ICTS","Strategic ICTS (ICT Service Budget)","R4400"
"Wolverhampton City Council","http://opendatacommunities.org/id/metropolitan-district-council/wolverhampton","711010","Network Ventures Ltd","076V171141","2,275.00","Services - Professional Fees","130221923","25/07/2018","ICTS","Strategic ICTS (ICT Service Budget)","R4400"
"Wolverhampton City Council","http://opendatacommunities.org/id/metropolitan-district-council/wolverhampton","711010","Network Ventures Ltd","076V170989","2,000.00","Agency Staff","130220189","11/07/2018","Corporate Business Support","Corporate Programmes","R1100"
"Wolverhampton City Council","http://opendatacommunities.org/id/metropolitan-district-council/wolverhampton","711010","Network Ventures Ltd","076V171066","2,275.00","Services - Professional Fees","130221028","18/07/2018","ICTS","Strategic ICTS (ICT Service Budget)","R4400"
"Wolverhampton City Council","http://opendatacommunities.org/id/metropolitan-district-council/wolverhampton","711010","Network Ventures Ltd","076v170371","1,725.00","Services - Professional Fees","190484243","13/07/2018","ICTS","Strategic ICTS (ICT Service Budget)","R4400"
"Wolverhampton City Council","http://opendatacommunities.org/id/metropolitan-district-council/wolverhampton","711010","Network Ventures Ltd","076v170712","1,725.00","Services - Professional Fees","190484248","13/07/2018","ICTS","Strategic ICTS (ICT Service Budget)","R4400"
"Wolverhampton City Council","http://opendatacommunities.org/id/metropolitan-district-council/wolverhampton","711010","Network Ventures Ltd","076v170847","1,380.00","Services - Professional Fees","190484250","13/07/2018","ICTS","Strategic ICTS (ICT Service Budget)","R4400"
"Wolverhampton City Council","http://opendatacommunities.org/id/metropolitan-district-council/wolverhampton","711010","Network Ventures Ltd","076V170921","2,125.00","Agency Staff","130219317","04/07/2018","Corporate Business Support","Corporate Programmes","R1100"
"Wolverhampton City Council","http://opendatacommunities.org/id/metropolitan-district-council/wolverhampton","711010","Network Ventures Ltd","076V171131","2,375.00","Agency Staff","130221922","25/07/2018","Corporate Business Support","Corporate Programmes","R1100"
"Wolverhampton City Council","http://opendatacommunities.org/id/metropolitan-district-council/wolverhampton","711010","Network Ventures Ltd","076v170437","1,725.00","Services - Professional Fees","190484244","13/07/2018","ICTS","Strategic ICTS (ICT Service Budget)","R4400"
"Wolverhampton City Council","http://opendatacommunities.org/id/metropolitan-district-council/wolverhampton","711010","Network Ventures Ltd","076v170779","1,725.00","Services - Professional Fees","190484249","13/07/2018","ICTS","Strategic ICTS (ICT Service Budget)","R4400"
"Wolverhampton City Council","http://opendatacommunities.org/id/metropolitan-district-council/wolverhampton","711010","Network Ventures Ltd","076V171058","2,500.00","Agency Staff","130221027","18/07/2018","Corporate Business Support","Corporate Programmes","R1100"
"Wolverhampton City Council","http://opendatacommunities.org/id/metropolitan-district-council/wolverhampton","711010","Network Ventures Ltd","076V170998","2,275.00","Services - Professional Fees","130220190","11/07/2018","ICTS","Strategic ICTS (ICT Service Budget)","R4400"
"Wolverhampton City Council","http://opendatacommunities.org/id/metropolitan-district-council/wolverhampton","711010","Network Ventures Ltd","076V170930","2,275.00","Services - Professional Fees","130219318","04/07/2018","ICTS","Strategic ICTS (ICT Service Budget)","R4400"
"Wolverhampton City Council","http://opendatacommunities.org/id/metropolitan-district-council/wolverhampton","711055","Traffic Enforcement CCC Business Centre","City of Wolverhampton Council ~ July 2018","30,000.00","Services - Fees and Charges","190487233","23/07/2018","Parking Services","Parking Enforcement","R4401"
"Wolverhampton City Council","http://opendatacommunities.org/id/metropolitan-district-council/wolverhampton","711070","DWF LLP","1960686","5,010.50","Services - Professional Fees","130223239","25/07/2018","Land and Property Investment Support","Land Property Investment Fund Management Costs","R4400"
"Wolverhampton City Council","http://opendatacommunities.org/id/metropolitan-district-council/wolverhampton","711070","DWF LLP","1947679","3,619.00","Services - Professional Fees","130218440","13/07/2018","Land and Property Investment Support","Land Property Investment Fund Management Costs","R4400"
"Wolverhampton City Council","http://opendatacommunities.org/id/metropolitan-district-council/wolverhampton","711070","DWF LLP","1960682","536.50","Services - Professional Fees","130220194","25/07/2018","Land and Property Investment Support","Land Property Investment Fund Management Costs","R4400"
"Wolverhampton City Council","http://opendatacommunities.org/id/metropolitan-district-council/wolverhampton","711070","DWF LLP","1960683","4,382.00","Services - Professional Fees","130220195","13/07/2018","Land and Property Investment Support","Land Property Investment Fund Management Costs","R4400"
"Wolverhampton City Council","http://opendatacommunities.org/id/metropolitan-district-council/wolverhampton","711070","DWF LLP","1946340","324.00","Services - Professional Fees","130218439","13/07/2018","Land and Property Investment Support","Land Property Investment Fund Management Costs","R4400"
"Wolverhampton City Council","http://opendatacommunities.org/id/metropolitan-district-council/wolverhampton","711070","DWF LLP","1960681","87.00","Services - Professional Fees","130220193","13/07/2018","Land and Property Investment Support","Land Property Investment Fund Management Costs","R4400"
"Wolverhampton City Council","http://opendatacommunities.org/id/metropolitan-district-council/wolverhampton","711070","DWF LLP","1953474","16,934.38","Services - Professional Fees","130223238","25/07/2018","Land and Property Investment Support","Land Property Investment Fund Management Costs","R4400"
"Wolverhampton City Council","http://opendatacommunities.org/id/metropolitan-district-council/wolverhampton","711070","DWF LLP","1960680","3,106.50","Services - Professional Fees","130220192","13/07/2018","Land and Property Investment Support","Land Property Investment Fund Management Costs","R4400"
"Wolverhampton City Council","http://opendatacommunities.org/id/metropolitan-district-council/wolverhampton","711074","Handicare","SIN581257","6,671.80","Equipment - Purchase","130218800","06/07/2018","Independent Living Service","Independent Living Service","R4000"
"Wolverhampton City Council","http://opendatacommunities.org/id/metropolitan-district-council/wolverhampton","711076","Turbex Ltd","33619","239.60","Equipment - R & M","130220196","04/07/2018","Independent Living Service","Independent Living Service","R4003"
"Wolverhampton City Council","http://opendatacommunities.org/id/metropolitan-district-council/wolverhampton","711076","Turbex Ltd","33619","49.00","Equipment - R & M","130220196","04/07/2018","Independent Living Service","Independent Living Service","R4003"
"Wolverhampton City Council","http://opendatacommunities.org/id/metropolitan-district-council/wolverhampton","711077","Chiltern Invadex (UK) Ltd","18/0124/SAG","3,004.50","Grants paid out to other organisations","190483222","11/07/2018","-","Disabled Facilities Grants","C5011"
"Wolverhampton City Council","http://opendatacommunities.org/id/metropolitan-district-council/wolverhampton","711081","Enable Aid Limited","4202","4,500.00","Equipment - Purchase","130219140","04/07/2018","Independent Living Service","Independent Living Service","R4000"
"Wolverhampton City Council","http://opendatacommunities.org/id/metropolitan-district-council/wolverhampton","711081","Enable Aid Limited","4202","200.00","Equipment - Purchase","130219140","04/07/2018","Independent Living Service","Independent Living Service","R4000"
"Wolverhampton City Council","http://opendatacommunities.org/id/metropolitan-district-council/wolverhampton","711082","The PiXL Club","INV-21701","50.00","Computing - Purchase of Hardware","130221607","06/07/2018","Schools","The King�s Church of England School","R4530"
"Wolverhampton City Council","http://opendatacommunities.org/id/metropolitan-district-council/wolverhampton","711082","The PiXL Club","INV-21608","50.00","Computing - Purchase of Hardware","130221606","06/07/2018","Schools","The King�s Church of England School","R4530"
"Wolverhampton City Council","http://opendatacommunities.org/id/metropolitan-district-council/wolverhampton","711094","OTS","0000023439","2,302.00","Equipment - Purchase","130214533","11/07/2018","Independent Living Service","Independent Living Service","R4000"
"Wolverhampton City Council","http://opendatacommunities.org/id/metropolitan-district-council/wolverhampton","711094","OTS","0000023909","335.00","Equipment - Purchase","130219141","04/07/2018","Independent Living Service","Independent Living Service","R4000"
"Wolverhampton City Council","http://opendatacommunities.org/id/metropolitan-district-council/wolverhampton","711094","OTS","0000023909","1,499.60","Equipment - Purchase","130219141","04/07/2018","Independent Living Service","Independent Living Service","R4000"
"Wolverhampton City Council","http://opendatacommunities.org/id/metropolitan-district-council/wolverhampton","711135","Hindley Contractors LTD","17/0312/DFG","4,327.95","Grants paid out to other organisations","190485683","18/07/2018","-","Disabled Facilities Grants","C5011"
"Wolverhampton City Council","http://opendatacommunities.org/id/metropolitan-district-council/wolverhampton","711135","Hindley Contractors LTD","15/0413/DFGa","3,000.00","Grants paid out to other organisations","190483221","11/07/2018","-","Disabled Facilities Grants","C5011"
"Wolverhampton City Council","http://opendatacommunities.org/id/metropolitan-district-council/wolverhampton","711135","Hindley Contractors LTD","16/0611/DFG","4,033.18","Grants paid out to other organisations","190485680","18/07/2018","-","Disabled Facilities Grants","C5011"
"Wolverhampton City Council","http://opendatacommunities.org/id/metropolitan-district-council/wolverhampton","711135","Hindley Contractors LTD","16/0188/DFG","7,484.98","Grants paid out to other organisations","190475782","04/07/2018","-","Disabled Facilities Grants","C5011"
"Wolverhampton City Council","http://opendatacommunities.org/id/metropolitan-district-council/wolverhampton","711135","Hindley Contractors LTD","17/0213/DFG","3,994.23","Grants paid out to other organisations","190475785","04/07/2018","-","Disabled Facilities Grants","C5011"
"Wolverhampton City Council","http://opendatacommunities.org/id/metropolitan-district-council/wolverhampton","711148","Tarmac Trading Limited","9038253513","164.48","Materials","130220590","13/07/2018","Highways Maintenance","Planned Highways Maintenance","R4007"
"Wolverhampton City Council","http://opendatacommunities.org/id/metropolitan-district-council/wolverhampton","711148","Tarmac Trading Limited","9038299290","274.13","Materials","130222048","18/07/2018","Highways Maintenance","Planned Highways Maintenance","R4007"
"Wolverhampton City Council","http://opendatacommunities.org/id/metropolitan-district-council/wolverhampton","711148","Tarmac Trading Limited","9038138447","197.37","Materials","130218647","25/07/2018","Highways Maintenance","Planned Highways Maintenance","R4007"
"Wolverhampton City Council","http://opendatacommunities.org/id/metropolitan-district-council/wolverhampton","711148","Tarmac Trading Limited","9038314402","110.40","Materials","130222049","18/07/2018","Highways Maintenance","Planned Highways Maintenance","R4007"
"Wolverhampton City Council","http://opendatacommunities.org/id/metropolitan-district-council/wolverhampton","711148","Tarmac Trading Limited","9038281926","131.58","Materials","130221505","11/07/2018","Highways Maintenance","Planned Highways Maintenance","R4007"
"Wolverhampton City Council","http://opendatacommunities.org/id/metropolitan-district-council/wolverhampton","711148","Tarmac Trading Limited","9038290929","164.48","Materials","130221401","13/07/2018","Highways Maintenance","Planned Highways Maintenance","R4007"
"Wolverhampton City Council","http://opendatacommunities.org/id/metropolitan-district-council/wolverhampton","711148","Tarmac Trading Limited","9038146522","109.65","Materials","130218648","04/07/2018","Highways Maintenance","Planned Highways Maintenance","R4007"
"Wolverhampton City Council","http://opendatacommunities.org/id/metropolitan-district-council/wolverhampton","711194","ALGAO","2018-77S","140.00","Subscriptions","130219320","11/07/2018","Planning","Planning","R4701"
"Wolverhampton City Council","http://opendatacommunities.org/id/metropolitan-district-council/wolverhampton","711200","Little Learners 123","TFT Summer 2018 Inst 2","864.60","TPP - Private Nursery Education Funding","190489836","25/07/2018","Early Years","Early Years Entitlement Funding for Disadvantaged 2 Year Olds","R5035"
"Wolverhampton City Council","http://opendatacommunities.org/id/metropolitan-district-council/wolverhampton","711209","SJC Castle Ltd","FINEWS051","88.40","Books","130222387","25/07/2018","Local Economy","Finchfield Library","R4309"
"Wolverhampton City Council","http://opendatacommunities.org/id/metropolitan-district-council/wolverhampton","711228","Hansa Patel","19","122.00","TPP - Public Health Contracts","130222984","23/07/2018","Healthier Places Service","Sport Development","R5060"
"Wolverhampton City Council","http://opendatacommunities.org/id/metropolitan-district-council/wolverhampton","711291","Resources for Autism","P17911720180713","389.50","TPP - Short Breaks","190484673","18/07/2018","Child Protection","Childrens with Disabilities Team","R5500"
"Wolverhampton City Council","http://opendatacommunities.org/id/metropolitan-district-council/wolverhampton","711387","GTG Training Limited","546241","18.50","Hospitality","130222230","18/07/2018","Standards and Vulnerable Pupils","School Standards Training","R4612"
"Wolverhampton City Council","http://opendatacommunities.org/id/metropolitan-district-council/wolverhampton","711387","GTG Training Limited","548775","55.50","Hospitality","130222262","18/07/2018","Standards and Vulnerable Pupils","School Standards Training","R4612"
"Wolverhampton City Council","http://opendatacommunities.org/id/metropolitan-district-council/wolverhampton","711387","GTG Training Limited","546240","92.50","Hospitality","130222229","18/07/2018","Standards and Vulnerable Pupils","School Standards Training","R4612"
"Wolverhampton City Council","http://opendatacommunities.org/id/metropolitan-district-council/wolverhampton","711387","GTG Training Limited","548166","700.00","Hospitality","130222257","18/07/2018","Standards and Vulnerable Pupils","School Standards Training","R4612"
"Wolverhampton City Council","http://opendatacommunities.org/id/metropolitan-district-council/wolverhampton","711387","GTG Training Limited","546242","109.95","Hospitality","130222231","18/07/2018","Standards and Vulnerable Pupils","School Standards Training","R4612"
"Wolverhampton City Council","http://opendatacommunities.org/id/metropolitan-district-council/wolverhampton","711387","GTG Training Limited","546235","64.75","Hospitality","130222224","18/07/2018","Standards and Vulnerable Pupils","School Standards Training","R4612"
"Wolverhampton City Council","http://opendatacommunities.org/id/metropolitan-district-council/wolverhampton","711387","GTG Training Limited","548773","46.25","Hospitality","130222260","18/07/2018","Standards and Vulnerable Pupils","School Standards Training","R4612"
"Wolverhampton City Council","http://opendatacommunities.org/id/metropolitan-district-council/wolverhampton","711387","GTG Training Limited","546728","37.00","Hospitality","130222233","18/07/2018","Standards and Vulnerable Pupils","School Standards Training","R4612"
"Wolverhampton City Council","http://opendatacommunities.org/id/metropolitan-district-council/wolverhampton","711387","GTG Training Limited","548165","220.00","Hospitality","130222256","18/07/2018","Standards and Vulnerable Pupils","School Standards Training","R4612"
"Wolverhampton City Council","http://opendatacommunities.org/id/metropolitan-district-council/wolverhampton","711387","GTG Training Limited","547719","72.15","Hospitality","130222245","18/07/2018","Standards and Vulnerable Pupils","School Standards Training","R4612"
"Wolverhampton City Council","http://opendatacommunities.org/id/metropolitan-district-council/wolverhampton","711387","GTG Training Limited","547485","110.00","Hospitality","130222242","18/07/2018","Standards and Vulnerable Pupils","School Standards Training","R4612"
"Wolverhampton City Council","http://opendatacommunities.org/id/metropolitan-district-council/wolverhampton","711387","GTG Training Limited","547163","110.00","Hospitality","130222237","18/07/2018","Standards and Vulnerable Pupils","School Standards Training","R4612"
"Wolverhampton City Council","http://opendatacommunities.org/id/metropolitan-district-council/wolverhampton","711387","GTG Training Limited","548784","330.00","Hospitality","130222271","18/07/2018","Standards and Vulnerable Pupils","School Standards Training","R4612"
"Wolverhampton City Council","http://opendatacommunities.org/id/metropolitan-district-council/wolverhampton","711387","GTG Training Limited","549783","110.00","Hospitality","130222273","18/07/2018","Standards and Vulnerable Pupils","School Standards Training","R4612"
"Wolverhampton City Council","http://opendatacommunities.org/id/metropolitan-district-council/wolverhampton","711387","GTG Training Limited","545462","220.00","Hospitality","130222211","18/07/2018","Standards and Vulnerable Pupils","School Standards Training","R4612"
"Wolverhampton City Council","http://opendatacommunities.org/id/metropolitan-district-council/wolverhampton","711387","GTG Training Limited","976243","16.65","Hospitality","130222275","18/07/2018","Standards and Vulnerable Pupils","School Standards Training","R4612"
"Wolverhampton City Council","http://opendatacommunities.org/id/metropolitan-district-council/wolverhampton","711387","GTG Training Limited","545180","249.75","Hospitality","130222210","18/07/2018","Standards and Vulnerable Pupils","School Standards Training","R4612"
"Wolverhampton City Council","http://opendatacommunities.org/id/metropolitan-district-council/wolverhampton","711387","GTG Training Limited","546237","55.50","Hospitality","130222226","11/07/2018","Standards and Vulnerable Pupils","School Standards Training","R4612"
"Wolverhampton City Council","http://opendatacommunities.org/id/metropolitan-district-council/wolverhampton","711387","GTG Training Limited","546225","64.75","Hospitality","130222214","18/07/2018","Standards and Vulnerable Pupils","School Standards Training","R4612"
"Wolverhampton City Council","http://opendatacommunities.org/id/metropolitan-district-council/wolverhampton","711387","GTG Training Limited","546228","37.00","Hospitality","130222217","18/07/2018","Standards and Vulnerable Pupils","School Standards Training","R4612"
"Wolverhampton City Council","http://opendatacommunities.org/id/metropolitan-district-council/wolverhampton","711387","GTG Training Limited","548206","220.00","Hospitality","130222258","18/07/2018","Standards and Vulnerable Pupils","School Standards Training","R4612"
"Wolverhampton City Council","http://opendatacommunities.org/id/metropolitan-district-council/wolverhampton","711387","GTG Training Limited","548772","92.50","Hospitality","130222259","18/07/2018","Standards and Vulnerable Pupils","School Standards Training","R4612"
"Wolverhampton City Council","http://opendatacommunities.org/id/metropolitan-district-council/wolverhampton","711387","GTG Training Limited","547989","185.50","Hospitality","130222252","18/07/2018","Standards and Vulnerable Pupils","School Standards Training","R4612"
"Wolverhampton City Council","http://opendatacommunities.org/id/metropolitan-district-council/wolverhampton","711387","GTG Training Limited","546239","64.75","Hospitality","130222228","18/07/2018","Standards and Vulnerable Pupils","School Standards Training","R4612"
"Wolverhampton City Council","http://opendatacommunities.org/id/metropolitan-district-council/wolverhampton","711387","GTG Training Limited","548774","40.70","Hospitality","130222261","18/07/2018","Standards and Vulnerable Pupils","School Standards Training","R4612"
"Wolverhampton City Council","http://opendatacommunities.org/id/metropolitan-district-council/wolverhampton","711387","GTG Training Limited","548777","83.25","Hospitality","130222264","18/07/2018","Standards and Vulnerable Pupils","School Standards Training","R4612"
"Wolverhampton City Council","http://opendatacommunities.org/id/metropolitan-district-council/wolverhampton","711387","GTG Training Limited","547717","37.00","Hospitality","130222243","18/07/2018","Standards and Vulnerable Pupils","School Standards Training","R4612"
"Wolverhampton City Council","http://opendatacommunities.org/id/metropolitan-district-council/wolverhampton","711387","GTG Training Limited","547984","220.00","Hospitality","130222248","18/07/2018","Standards and Vulnerable Pupils","School Standards Training","R4612"
"Wolverhampton City Council","http://opendatacommunities.org/id/metropolitan-district-council/wolverhampton","711387","GTG Training Limited","547718","111.00","Hospitality","130222244","18/07/2018","Standards and Vulnerable Pupils","School Standards Training","R4612"
"Wolverhampton City Council","http://opendatacommunities.org/id/metropolitan-district-council/wolverhampton","711387","GTG Training Limited","546729","150.00","Hospitality","130222234","18/07/2018","Standards and Vulnerable Pupils","School Standards Training","R4612"
"Wolverhampton City Council","http://opendatacommunities.org/id/metropolitan-district-council/wolverhampton","711387","GTG Training Limited","547985","110.00","Hospitality","130222249","18/07/2018","Standards and Vulnerable Pupils","School Standards Training","R4612"
"Wolverhampton City Council","http://opendatacommunities.org/id/metropolitan-district-council/wolverhampton","711387","GTG Training Limited","547218","110.00","Hospitality","130222239","18/07/2018","Standards and Vulnerable Pupils","School Standards Training","R4612"
"Wolverhampton City Council","http://opendatacommunities.org/id/metropolitan-district-council/wolverhampton","711387","GTG Training Limited","546123","110.00","Hospitality","130222212","18/07/2018","Standards and Vulnerable Pupils","School Standards Training","R4612"
"Wolverhampton City Council","http://opendatacommunities.org/id/metropolitan-district-council/wolverhampton","711387","GTG Training Limited","549784","110.00","Hospitality","130222274","18/07/2018","Standards and Vulnerable Pupils","School Standards Training","R4612"
"Wolverhampton City Council","http://opendatacommunities.org/id/metropolitan-district-council/wolverhampton","711387","GTG Training Limited","548781","55.50","Hospitality","130222268","18/07/2018","Standards and Vulnerable Pupils","School Standards Training","R4612"
"Wolverhampton City Council","http://opendatacommunities.org/id/metropolitan-district-council/wolverhampton","711387","GTG Training Limited","544567","51.80","Hospitality","130222209","13/07/2018","Standards and Vulnerable Pupils","School Standards Training","R4612"
"Wolverhampton City Council","http://opendatacommunities.org/id/metropolitan-district-council/wolverhampton","711387","GTG Training Limited","550409","27.75","Hospitality","130222391","25/07/2018","Standards and Vulnerable Pupils","School Standards Training","R4612"
"Wolverhampton City Council","http://opendatacommunities.org/id/metropolitan-district-council/wolverhampton","711387","GTG Training Limited","546227","83.25","Hospitality","130222216","18/07/2018","Standards and Vulnerable Pupils","School Standards Training","R4612"
"Wolverhampton City Council","http://opendatacommunities.org/id/metropolitan-district-council/wolverhampton","711387","GTG Training Limited","546231","64.75","Hospitality","130222220","18/07/2018","Standards and Vulnerable Pupils","School Standards Training","R4612"
"Wolverhampton City Council","http://opendatacommunities.org/id/metropolitan-district-council/wolverhampton","711387","GTG Training Limited","546233","27.75","Hospitality","130222222","18/07/2018","Standards and Vulnerable Pupils","School Standards Training","R4612"
"Wolverhampton City Council","http://opendatacommunities.org/id/metropolitan-district-council/wolverhampton","711387","GTG Training Limited","546229","18.50","Hospitality","130222218","18/07/2018","Standards and Vulnerable Pupils","School Standards Training","R4612"
"Wolverhampton City Council","http://opendatacommunities.org/id/metropolitan-district-council/wolverhampton","711387","GTG Training Limited","546236","37.00","Hospitality","130222225","18/07/2018","Standards and Vulnerable Pupils","School Standards Training","R4612"
"Wolverhampton City Council","http://opendatacommunities.org/id/metropolitan-district-council/wolverhampton","711387","GTG Training Limited","546391","55.50","Hospitality","130222232","18/07/2018","Standards and Vulnerable Pupils","School Standards Training","R4612"
"Wolverhampton City Council","http://opendatacommunities.org/id/metropolitan-district-council/wolverhampton","711387","GTG Training Limited","548119","220.00","Hospitality","130222255","18/07/2018","Standards and Vulnerable Pupils","School Standards Training","R4612"
"Wolverhampton City Council","http://opendatacommunities.org/id/metropolitan-district-council/wolverhampton","711387","GTG Training Limited","546238","92.50","Hospitality","130222227","18/07/2018","Standards and Vulnerable Pupils","School Standards Training","R4612"
"Wolverhampton City Council","http://opendatacommunities.org/id/metropolitan-district-council/wolverhampton","711387","GTG Training Limited","548093","330.00","Hospitality","130222253","18/07/2018","Standards and Vulnerable Pupils","School Standards Training","R4612"
"Wolverhampton City Council","http://opendatacommunities.org/id/metropolitan-district-council/wolverhampton","711387","GTG Training Limited","548780","222.00","Hospitality","130222267","18/07/2018","Standards and Vulnerable Pupils","School Standards Training","R4612"
"Wolverhampton City Council","http://opendatacommunities.org/id/metropolitan-district-council/wolverhampton","711387","GTG Training Limited","548776","37.00","Hospitality","130222263","18/07/2018","Standards and Vulnerable Pupils","School Standards Training","R4612"
"Wolverhampton City Council","http://opendatacommunities.org/id/metropolitan-district-council/wolverhampton","711387","GTG Training Limited","547023","110.00","Hospitality","130222236","18/07/2018","Standards and Vulnerable Pupils","School Standards Training","R4612"
"Wolverhampton City Council","http://opendatacommunities.org/id/metropolitan-district-council/wolverhampton","711387","GTG Training Limited","547484","110.00","Hospitality","130222241","18/07/2018","Standards and Vulnerable Pupils","School Standards Training","R4612"
"Wolverhampton City Council","http://opendatacommunities.org/id/metropolitan-district-council/wolverhampton","711387","GTG Training Limited","548783","110.00","Hospitality","130222270","18/07/2018","Standards and Vulnerable Pupils","School Standards Training","R4612"
"Wolverhampton City Council","http://opendatacommunities.org/id/metropolitan-district-council/wolverhampton","711387","GTG Training Limited","546224","46.25","Hospitality","130222213","18/07/2018","Standards and Vulnerable Pupils","School Standards Training","R4612"
"Wolverhampton City Council","http://opendatacommunities.org/id/metropolitan-district-council/wolverhampton","711387","GTG Training Limited","548782","111.00","Hospitality","130222269","18/07/2018","Standards and Vulnerable Pupils","School Standards Training","R4612"
"Wolverhampton City Council","http://opendatacommunities.org/id/metropolitan-district-council/wolverhampton","711387","GTG Training Limited","550162","110.00","Hospitality","130222389","18/07/2018","Standards and Vulnerable Pupils","School Standards Training","R4612"
"Wolverhampton City Council","http://opendatacommunities.org/id/metropolitan-district-council/wolverhampton","711387","GTG Training Limited","977199","1,036.46","Training Expenses","130219435","11/07/2018","Skills","IMPACT","R1650"
"Wolverhampton City Council","http://opendatacommunities.org/id/metropolitan-district-council/wolverhampton","711387","GTG Training Limited","550408","55.50","Hospitality","130222390","25/07/2018","Standards and Vulnerable Pupils","School Standards Training","R4612"
"Wolverhampton City Council","http://opendatacommunities.org/id/metropolitan-district-council/wolverhampton","711387","GTG Training Limited","546230","55.50","Hospitality","130222219","18/07/2018","Standards and Vulnerable Pupils","School Standards Training","R4612"
"Wolverhampton City Council","http://opendatacommunities.org/id/metropolitan-district-council/wolverhampton","711387","GTG Training Limited","546234","92.50","Hospitality","130222223","18/07/2018","Standards and Vulnerable Pupils","School Standards Training","R4612"
"Wolverhampton City Council","http://opendatacommunities.org/id/metropolitan-district-council/wolverhampton","711387","GTG Training Limited","546232","37.00","Hospitality","130222221","18/07/2018","Standards and Vulnerable Pupils","School Standards Training","R4612"
"Wolverhampton City Council","http://opendatacommunities.org/id/metropolitan-district-council/wolverhampton","711387","GTG Training Limited","548094","185.50","Hospitality","130222254","18/07/2018","Standards and Vulnerable Pupils","School Standards Training","R4612"
"Wolverhampton City Council","http://opendatacommunities.org/id/metropolitan-district-council/wolverhampton","711387","GTG Training Limited","547987","220.00","Hospitality","130222251","18/07/2018","Standards and Vulnerable Pupils","School Standards Training","R4612"
"Wolverhampton City Council","http://opendatacommunities.org/id/metropolitan-district-council/wolverhampton","711387","GTG Training Limited","548778","111.00","Hospitality","130222265","18/07/2018","Standards and Vulnerable Pupils","School Standards Training","R4612"
"Wolverhampton City Council","http://opendatacommunities.org/id/metropolitan-district-council/wolverhampton","711387","GTG Training Limited","548779","277.50","Hospitality","130222266","18/07/2018","Standards and Vulnerable Pupils","School Standards Training","R4612"
"Wolverhampton City Council","http://opendatacommunities.org/id/metropolitan-district-council/wolverhampton","711387","GTG Training Limited","547986","110.00","Hospitality","130222250","18/07/2018","Standards and Vulnerable Pupils","School Standards Training","R4612"
"Wolverhampton City Council","http://opendatacommunities.org/id/metropolitan-district-council/wolverhampton","711387","GTG Training Limited","547219","110.00","Hospitality","130222240","18/07/2018","Standards and Vulnerable Pupils","School Standards Training","R4612"
"Wolverhampton City Council","http://opendatacommunities.org/id/metropolitan-district-council/wolverhampton","711387","GTG Training Limited","547721","376.00","Hospitality","130222247","18/07/2018","Standards and Vulnerable Pupils","School Standards Training","R4612"
"Wolverhampton City Council","http://opendatacommunities.org/id/metropolitan-district-council/wolverhampton","711387","GTG Training Limited","546979","110.00","Hospitality","130222235","18/07/2018","Standards and Vulnerable Pupils","School Standards Training","R4612"
"Wolverhampton City Council","http://opendatacommunities.org/id/metropolitan-district-council/wolverhampton","711387","GTG Training Limited","547217","330.00","Hospitality","130222238","18/07/2018","Standards and Vulnerable Pupils","School Standards Training","R4612"
"Wolverhampton City Council","http://opendatacommunities.org/id/metropolitan-district-council/wolverhampton","711387","GTG Training Limited","547720","37.00","Hospitality","130222246","18/07/2018","Standards and Vulnerable Pupils","School Standards Training","R4612"
"Wolverhampton City Council","http://opendatacommunities.org/id/metropolitan-district-council/wolverhampton","711387","GTG Training Limited","548785","220.00","Hospitality","130222272","18/07/2018","Standards and Vulnerable Pupils","School Standards Training","R4612"
"Wolverhampton City Council","http://opendatacommunities.org/id/metropolitan-district-council/wolverhampton","711387","GTG Training Limited","546226","64.75","Hospitality","130222215","18/07/2018","Standards and Vulnerable Pupils","School Standards Training","R4612"
"Wolverhampton City Council","http://opendatacommunities.org/id/metropolitan-district-council/wolverhampton","711387","GTG Training Limited","549967","110.00","Hospitality","130222388","18/07/2018","Standards and Vulnerable Pupils","School Standards Training","R4612"
"Wolverhampton City Council","http://opendatacommunities.org/id/metropolitan-district-council/wolverhampton","711387","GTG Training Limited","977278a","1,433.34","Training Expenses","130222393","18/07/2018","Skills","IMPACT","R1650"
"Wolverhampton City Council","http://opendatacommunities.org/id/metropolitan-district-council/wolverhampton","711456","AVR Group Ltd","78299","2,550.56","Computing - Purchase of Software","130221679","25/07/2018","Audit Services","Health & Safety","R4531"
"Wolverhampton City Council","http://opendatacommunities.org/id/metropolitan-district-council/wolverhampton","711504","Acivico","9600187063","1,683.00","Construction and Conversion","130220854","25/07/2018","-","Structural works","C1100"
"Wolverhampton City Council","http://opendatacommunities.org/id/metropolitan-district-council/wolverhampton","711563","Mandy  Dalton Marsh","NEF Summer 2018 INST 2","1,774.80","TPP - Private Nursery Education Funding","190489824","25/07/2018","Early Years","Early Years Universal Entitlement for 3 and 4 Year Olds","R5035"
"Wolverhampton City Council","http://opendatacommunities.org/id/metropolitan-district-council/wolverhampton","711768","Nigel Wake","NW/03-2018","2,780.00","Services - Professional Fees","130219661","11/07/2018","Public Service Reform","Social Work Qualifying Training","R4400"
"Wolverhampton City Council","http://opendatacommunities.org/id/metropolitan-district-council/wolverhampton","711768","Nigel Wake","NW/04-2018","280.00","Services - Professional Fees","130219662","11/07/2018","Public Service Reform","Social Work Qualifying Training","R4400"
"Wolverhampton City Council","http://opendatacommunities.org/id/metropolitan-district-council/wolverhampton","711785","Progress Adult Living Services","INV-0018","3,004.20","TPP - Short Breaks","130222758","18/07/2018","Child Protection","Short Breaks","R5500"
"Wolverhampton City Council","http://opendatacommunities.org/id/metropolitan-district-council/wolverhampton","711785","Progress Adult Living Services","INV-0255","3,004.20","TPP - Short Breaks","130222760","25/07/2018","Child Protection","Short Breaks","R5500"
"Wolverhampton City Council","http://opendatacommunities.org/id/metropolitan-district-council/wolverhampton","711785","Progress Adult Living Services","INV-0151","3,004.20","TPP - Short Breaks","130222759","18/07/2018","Child Protection","Short Breaks","R5500"
"Wolverhampton City Council","http://opendatacommunities.org/id/metropolitan-district-council/wolverhampton","711785","Progress Adult Living Services","INV-025620180703","580.00","TPP - Home Care","190475858","04/07/2018","Learning Disabilities Care Purchasing","LD Care Purchasing (Spot Placements)","R5420"
"Wolverhampton City Council","http://opendatacommunities.org/id/metropolitan-district-council/wolverhampton","711785","Progress Adult Living Services","INV-025620180703","870.00","TPP - Home Care","190475858","04/07/2018","Learning Disabilities Care Purchasing","LD Care Purchasing (Spot Placements)","R5420"
"Wolverhampton City Council","http://opendatacommunities.org/id/metropolitan-district-council/wolverhampton","711785","Progress Adult Living Services","P17854420180706","231.00","TPP - Short Breaks","190481593","11/07/2018","Child Protection","Childrens with Disabilities Team","R5500"
"Wolverhampton City Council","http://opendatacommunities.org/id/metropolitan-district-council/wolverhampton","711785","Progress Adult Living Services","P17854420180706","132.00","TPP - Short Breaks","190481593","11/07/2018","Child Protection","Childrens with Disabilities Team","R5500"
"Wolverhampton City Council","http://opendatacommunities.org/id/metropolitan-district-council/wolverhampton","711785","Progress Adult Living Services","P17854420180706","717.76","TPP - Short Breaks","190481593","11/07/2018","Child Protection","Childrens with Disabilities Team","R5500"
"Wolverhampton City Council","http://opendatacommunities.org/id/metropolitan-district-council/wolverhampton","711785","Progress Adult Living Services","P17854420180706","561.00","TPP - Short Breaks","190481593","11/07/2018","Child Protection","Childrens with Disabilities Team","R5500"
"Wolverhampton City Council","http://opendatacommunities.org/id/metropolitan-district-council/wolverhampton","711785","Progress Adult Living Services","P17854420180706","462.00","TPP - Short Breaks","190481593","11/07/2018","Child Protection","Childrens with Disabilities Team","R5500"
"Wolverhampton City Council","http://opendatacommunities.org/id/metropolitan-district-council/wolverhampton","711785","Progress Adult Living Services","P17854420180706","165.00","TPP - Short Breaks","190481593","11/07/2018","Child Protection","Childrens with Disabilities Team","R5500"
"Wolverhampton City Council","http://opendatacommunities.org/id/metropolitan-district-council/wolverhampton","711785","Progress Adult Living Services","P17794420180629","198.00","TPP - Short Breaks","190474866","04/07/2018","Child Protection","Childrens with Disabilities Team","R5500"
"Wolverhampton City Council","http://opendatacommunities.org/id/metropolitan-district-council/wolverhampton","711785","Progress Adult Living Services","P17794420180629","198.00","TPP - Short Breaks","190474866","04/07/2018","Child Protection","Childrens with Disabilities Team","R5500"
"Wolverhampton City Council","http://opendatacommunities.org/id/metropolitan-district-council/wolverhampton","711785","Progress Adult Living Services","P17794420180629","66.00","TPP - Short Breaks","190474866","04/07/2018","Child Protection","Childrens with Disabilities Team","R5500"
"Wolverhampton City Council","http://opendatacommunities.org/id/metropolitan-district-council/wolverhampton","711785","Progress Adult Living Services","P17794420180629","709.50","TPP - Short Breaks","190474866","04/07/2018","Child Protection","Childrens with Disabilities Team","R5500"
"Wolverhampton City Council","http://opendatacommunities.org/id/metropolitan-district-council/wolverhampton","711798","Dr Cvijan","DRC/57547","946.90","Services - Professional Fees","190485095","18/07/2018","Public Service Reform","Coroners Service","R4400"
"Wolverhampton City Council","http://opendatacommunities.org/id/metropolitan-district-council/wolverhampton","711821","DSM Demolition","7","37,975.91","Construction and Conversion","130222571","18/07/2018","-","Heath Town","C1100"
"Wolverhampton City Council","http://opendatacommunities.org/id/metropolitan-district-council/wolverhampton","711821","DSM Demolition","C11089/15838","37,975.91","Construction and Conversion","130221925","13/07/2018","-","Heath Town","C1100"
"Wolverhampton City Council","http://opendatacommunities.org/id/metropolitan-district-council/wolverhampton","711822","Greenleigh Care Ltd","P177530 22071820180703","1,604.00","TPP - Residential Care - Long Term","190476023","04/07/2018","Older People Care Purchasing","OP Care Purchasing (Spot Placements)","R5400"
"Wolverhampton City Council","http://opendatacommunities.org/id/metropolitan-district-council/wolverhampton","711822","Greenleigh Care Ltd","P177530 22071820180703","1,604.00","TPP - Residential Care - Long Term","190476023","04/07/2018","Older People Care Purchasing","OP Care Purchasing (Spot Placements)","R5400"
"Wolverhampton City Council","http://opendatacommunities.org/id/metropolitan-district-council/wolverhampton","711874","Nichola Tompkins","NEF Summer 2018 INST 2","918.00","TPP - Private Nursery Education Funding","190489824","25/07/2018","Early Years","Early Years Universal Entitlement for 3 and 4 Year Olds","R5035"
"Wolverhampton City Council","http://opendatacommunities.org/id/metropolitan-district-council/wolverhampton","711913","Interserve Fire Services Ltd","374432FS","337.99","Equipment - R & M","130220704","04/07/2018","Skills","Connexions Contract","R4003"
"Wolverhampton City Council","http://opendatacommunities.org/id/metropolitan-district-council/wolverhampton","711913","Interserve Fire Services Ltd","346329FS","117.00","Equipment - R & M","130220701","04/07/2018","Maintenance Programme","Centralised R&M","R4003"
"Wolverhampton City Council","http://opendatacommunities.org/id/metropolitan-district-council/wolverhampton","711931","Nishkam Nursery School","NEF Summer 2018 INST 2","23,409.00","TPP - Private Nursery Education Funding","190489824","25/07/2018","Early Years","Early Years Universal Entitlement for 3 and 4 Year Olds","R5035"
"Wolverhampton City Council","http://opendatacommunities.org/id/metropolitan-district-council/wolverhampton","711940","The Edge Systems Ltd","88813","798.00","Computing - Consumables","130220441","18/07/2018","Licensing","Licensing - Private Hire Vehicles","R4532"
"Wolverhampton City Council","http://opendatacommunities.org/id/metropolitan-district-council/wolverhampton","711946","Hollywood Monster","66192","175.00","Signage and Labels","130223085","23/07/2018","Corporate Asset Management","Future Space Decant Area","R4009"
"Wolverhampton City Council","http://opendatacommunities.org/id/metropolitan-district-council/wolverhampton","711948","Ms PK Moore","48","450.00","No Recourse to Public Funds","130219567","06/07/2018","Child Protection","CIN/CP Social Work Unit - Area 4","R6314"
"Wolverhampton City Council","http://opendatacommunities.org/id/metropolitan-district-council/wolverhampton","712005","YMCA Black Country Group","P17961020180720","90.00","Client Allowances","190488124","25/07/2018","Looked After Children","LAC Transitions Team","R6301"
"Wolverhampton City Council","http://opendatacommunities.org/id/metropolitan-district-council/wolverhampton","712005","YMCA Black Country Group","P17794220180629","90.00","Client Allowances","190474864","04/07/2018","Looked After Children","LAC Transitions Team","R6301"
"Wolverhampton City Council","http://opendatacommunities.org/id/metropolitan-district-council/wolverhampton","712005","YMCA Black Country Group","12314","35,656.70","TPP - Payments to voluntary groups","130221403","25/07/2018","Headstart","Headstart - Commissioned Activity","R5200"
"Wolverhampton City Council","http://opendatacommunities.org/id/metropolitan-district-council/wolverhampton","712005","YMCA Black Country Group","12314","17,592.58","TPP - Payments to voluntary groups","130221403","25/07/2018","Headstart","Headstart - Commissioned Activity","R5200"
"Wolverhampton City Council","http://opendatacommunities.org/id/metropolitan-district-council/wolverhampton","712005","YMCA Black Country Group","12330","400.00","Section 17","190489179","25/07/2018","Child Protection","MASH","R6403"
"Wolverhampton City Council","http://opendatacommunities.org/id/metropolitan-district-council/wolverhampton","712005","YMCA Black Country Group","P17911520180713","90.00","Client Allowances","190484671","25/07/2018","Looked After Children","LAC Transitions Team","R6301"
"Wolverhampton City Council","http://opendatacommunities.org/id/metropolitan-district-council/wolverhampton","712005","YMCA Black Country Group","P17854220180706","-1,530.00","Client Allowances","190481591","25/07/2018","Looked After Children","LAC Transitions Team","R6301"
"Wolverhampton City Council","http://opendatacommunities.org/id/metropolitan-district-council/wolverhampton","712005","YMCA Black Country Group","P17854220180706","90.00","Client Allowances","190481591","25/07/2018","Looked After Children","LAC Transitions Team","R6301"
"Wolverhampton City Council","http://opendatacommunities.org/id/metropolitan-district-council/wolverhampton","712005","YMCA Black Country Group","P179107 22071820180713","388.57","TPP - Residential Care - Long Term","190485026","25/07/2018","Child Protection","CIN - Valley Park Mast - Area 5","R5400"
"Wolverhampton City Council","http://opendatacommunities.org/id/metropolitan-district-council/wolverhampton","712032","Guide Dogs for the Blind Association","20004181","1,630.76","TPP - Social Care Support Services","130219437","04/07/2018","Special Educational Needs","SEN Sensory Inclusion","R5501"
"Wolverhampton City Council","http://opendatacommunities.org/id/metropolitan-district-council/wolverhampton","712129","Carol Davies","144","250.00","Training Expenses","130220592","23/07/2018","Safeguarding","Safeguarding Partnership Board","R1650"
"Wolverhampton City Council","http://opendatacommunities.org/id/metropolitan-district-council/wolverhampton","712171","Robert Conway","429/18","250.00","Services - Professional Fees","130218651","04/07/2018","Visitor Economy","Education And Access","R4400"
"Wolverhampton City Council","http://opendatacommunities.org/id/metropolitan-district-council/wolverhampton","712171","Robert Conway","435/18","150.00","Services - Professional Fees","130221193","25/07/2018","Visitor Economy","Education And Access","R4400"
"Wolverhampton City Council","http://opendatacommunities.org/id/metropolitan-district-council/wolverhampton","712274","VeloxServ Communication Ltd","Grant No. 107/18c","11,042.00","Grants paid out to other organisations","190475752","04/07/2018","-","GF - Black Country Gold ERDF Project","C5011"
"Wolverhampton City Council","http://opendatacommunities.org/id/metropolitan-district-council/wolverhampton","712280","Libran Property Management","P17854020180706","484.64","Client Allowances","190481589","11/07/2018","Looked After Children","Looked After Team 2","R6301"
"Wolverhampton City Council","http://opendatacommunities.org/id/metropolitan-district-council/wolverhampton","712280","Libran Property Management","P17960820180720","484.64","Client Allowances","190488122","25/07/2018","Looked After Children","Looked After Team 2","R6301"
"Wolverhampton City Council","http://opendatacommunities.org/id/metropolitan-district-council/wolverhampton","712306","R-Com Consulting Ltd","12115","10.00","Plant, Equipment, Machinery & Computer Hardware","130218652","04/07/2018","-","ICT General Programme","C3000"
"Wolverhampton City Council","http://opendatacommunities.org/id/metropolitan-district-council/wolverhampton","712306","R-Com Consulting Ltd","12115","726.00","Plant, Equipment, Machinery & Computer Hardware","130218652","04/07/2018","-","ICT General Programme","C3000"
"Wolverhampton City Council","http://opendatacommunities.org/id/metropolitan-district-council/wolverhampton","712314","June Knight","NEF Summer 2018 INST 2","918.00","TPP - Private Nursery Education Funding","190489824","25/07/2018","Early Years","Early Years Universal Entitlement for 3 and 4 Year Olds","R5035"
"Wolverhampton City Council","http://opendatacommunities.org/id/metropolitan-district-council/wolverhampton","712356","Finning (UK) Ltd","IN06544560","131.10","Services - Professional Fees","190481480","06/07/2018","Fleet Services","Fleet Management","R4400"
"Wolverhampton City Council","http://opendatacommunities.org/id/metropolitan-district-council/wolverhampton","712372","Wider Learning","WL0290","12,500.00","Services - Professional Fees","130220706","18/07/2018","Headstart","Headstart - Young People Engagement","R4400"
"Wolverhampton City Council","http://opendatacommunities.org/id/metropolitan-district-council/wolverhampton","712372","Wider Learning","WL0291","12,500.00","Services - Professional Fees","130221404","18/07/2018","Headstart","Headstart - Young People Engagement","R4400"
"Wolverhampton City Council","http://opendatacommunities.org/id/metropolitan-district-council/wolverhampton","712374","Pohwer","SINV7658","4,264.50","TPP - Social Care Support Services","130221926","25/07/2018","Strategic Commissioning","Local Reform and Community Voices Grant","R5501"
"Wolverhampton City Council","http://opendatacommunities.org/id/metropolitan-district-council/wolverhampton","712374","Pohwer","SINV7249","6,841.50","TPP - Social Care Support Services","130216274","06/07/2018","Strategic Commissioning","Local Reform and Community Voices Grant","R5501"
"Wolverhampton City Council","http://opendatacommunities.org/id/metropolitan-district-council/wolverhampton","712374","Pohwer","SINV7363","5,345.00","TPP - Social Care Support Services","130218960","18/07/2018","Strategic Commissioning","Local Reform and Community Voices Grant","R5501"
"Wolverhampton City Council","http://opendatacommunities.org/id/metropolitan-district-council/wolverhampton","712385","Rebecca Critchlow","NEF Summer 2018 INST 2","2,448.00","TPP - Private Nursery Education Funding","190489824","25/07/2018","Early Years","Early Years Universal Entitlement for 3 and 4 Year Olds","R5035"
"Wolverhampton City Council","http://opendatacommunities.org/id/metropolitan-district-council/wolverhampton","712391","Cary�s Childcare","NEF Summer 2018 INST 2","3,213.00","TPP - Private Nursery Education Funding","190489824","25/07/2018","Early Years","Early Years Universal Entitlement for 3 and 4 Year Olds","R5035"
"Wolverhampton City Council","http://opendatacommunities.org/id/metropolitan-district-council/wolverhampton","712405","Digital ID Limited","0000269178","746.45","Computing - Purchase of Software","130222761","25/07/2018","Facilities Management","Civic Centre","R4531"
"Wolverhampton City Council","http://opendatacommunities.org/id/metropolitan-district-council/wolverhampton","712405","Digital ID Limited","0000076400","-746.45","Computing - Purchase of Software","130217168","11/07/2018","Facilities Management","Civic Centre","R4531"
"Wolverhampton City Council","http://opendatacommunities.org/id/metropolitan-district-council/wolverhampton","712405","Digital ID Limited","0000277869","283.80","Computing - Consumables","130222394","18/07/2018","Licensing","Private Hire Drivers","R4532"
"Wolverhampton City Council","http://opendatacommunities.org/id/metropolitan-district-council/wolverhampton","712405","Digital ID Limited","0000277869","8.95","Comms - Postage","130222394","18/07/2018","Licensing","Private Hire Drivers","R4503"
"Wolverhampton City Council","http://opendatacommunities.org/id/metropolitan-district-council/wolverhampton","712405","Digital ID Limited","0000275915","3,900.00","Equipment - Purchase","130220855","11/07/2018","Facilities Management","Civic Centre","R4000"
"Wolverhampton City Council","http://opendatacommunities.org/id/metropolitan-district-council/wolverhampton","712405","Digital ID Limited","0000275915","39.95","Equipment - Purchase","130220855","11/07/2018","Facilities Management","Civic Centre","R4000"
"Wolverhampton City Council","http://opendatacommunities.org/id/metropolitan-district-council/wolverhampton","712405","Digital ID Limited","0000275915","8.95","Equipment - Purchase","130220855","11/07/2018","Facilities Management","Civic Centre","R4000"
"Wolverhampton City Council","http://opendatacommunities.org/id/metropolitan-district-council/wolverhampton","712421","Les Mills Fitness UK Ltd","SIV254747","399.80","Services - General Licences","130222939","25/07/2018","Leisure Services","Aldersley Leisure Village","R4402"
"Wolverhampton City Council","http://opendatacommunities.org/id/metropolitan-district-council/wolverhampton","712421","Les Mills Fitness UK Ltd","SIV230351","344.80","Services - General Licences","130219569","04/07/2018","Leisure Services","WV Active Business Support","R4402"
"Wolverhampton City Council","http://opendatacommunities.org/id/metropolitan-district-council/wolverhampton","712421","Les Mills Fitness UK Ltd","SIV232882","399.80","Services - General Licences","130219571","04/07/2018","Leisure Services","WV Active Business Support","R4402"
"Wolverhampton City Council","http://opendatacommunities.org/id/metropolitan-district-council/wolverhampton","712421","Les Mills Fitness UK Ltd","SIV255499","550.08","Training Expenses","130219322","11/07/2018","Public Service Reform","Centralised Training","R1650"
"Wolverhampton City Council","http://opendatacommunities.org/id/metropolitan-district-council/wolverhampton","712421","Les Mills Fitness UK Ltd","SIV233013","159.14","Services - General Licences","130219573","04/07/2018","Leisure Services","WV Active Business Support","R4402"
"Wolverhampton City Council","http://opendatacommunities.org/id/metropolitan-district-council/wolverhampton","712421","Les Mills Fitness UK Ltd","SIV233012","344.80","Services - General Licences","130219572","04/07/2018","Leisure Services","WV Active Business Support","R4402"
"Wolverhampton City Council","http://opendatacommunities.org/id/metropolitan-district-council/wolverhampton","712421","Les Mills Fitness UK Ltd","SIV237855","399.80","Services - General Licences","130219576","04/07/2018","Leisure Services","WV Active Business Support","R4402"
"Wolverhampton City Council","http://opendatacommunities.org/id/metropolitan-district-council/wolverhampton","712421","Les Mills Fitness UK Ltd","SIV227277","334.75","Services - General Licences","130222937","23/07/2018","Leisure Services","Aldersley Leisure Village","R4402"
"Wolverhampton City Council","http://opendatacommunities.org/id/metropolitan-district-council/wolverhampton","712421","Les Mills Fitness UK Ltd","SIV237615","344.80","Services - General Licences","130219574","04/07/2018","Leisure Services","WV Active Business Support","R4402"
"Wolverhampton City Council","http://opendatacommunities.org/id/metropolitan-district-council/wolverhampton","712421","Les Mills Fitness UK Ltd","SIV237633","159.14","Services - General Licences","130219575","04/07/2018","Leisure Services","WV Active Business Support","R4402"
"Wolverhampton City Council","http://opendatacommunities.org/id/metropolitan-district-council/wolverhampton","712421","Les Mills Fitness UK Ltd","SIV251184","399.80","Services - General Licences","130222938","25/07/2018","Leisure Services","Aldersley Leisure Village","R4402"
"Wolverhampton City Council","http://opendatacommunities.org/id/metropolitan-district-council/wolverhampton","712421","Les Mills Fitness UK Ltd","SIV230211","344.80","Services - General Licences","130219568","04/07/2018","Leisure Services","WV Active Business Support","R4402"
"Wolverhampton City Council","http://opendatacommunities.org/id/metropolitan-district-council/wolverhampton","712421","Les Mills Fitness UK Ltd","SIV230352","262.14","Services - General Licences","130219570","04/07/2018","Leisure Services","WV Active Business Support","R4402"
"Wolverhampton City Council","http://opendatacommunities.org/id/metropolitan-district-council/wolverhampton","712481","Frontline Staffing Ltd","4363976","13.50","Agency Staff","130218962","04/07/2018","Child Protection","MASH","R1100"
"Wolverhampton City Council","http://opendatacommunities.org/id/metropolitan-district-council/wolverhampton","712481","Frontline Staffing Ltd","4349723","1,023.86","Agency Staff","130219581","04/07/2018","Child Protection","CIN/CP Social Work Unit - Area 4","R1100"
"Wolverhampton City Council","http://opendatacommunities.org/id/metropolitan-district-council/wolverhampton","712481","Frontline Staffing Ltd","4389845","1,237.50","Agency Staff","130221931","27/07/2018","Child Protection","CIN/CP Social Work Unit - Area 5","R1100"
"Wolverhampton City Council","http://opendatacommunities.org/id/metropolitan-district-council/wolverhampton","712481","Frontline Staffing Ltd","4384396","1,831.50","Agency Staff","130220857","25/07/2018","Child Protection","CIN/CP Social Work Unit - Area 7","R1100"
"Wolverhampton City Council","http://opendatacommunities.org/id/metropolitan-district-council/wolverhampton","712481","Frontline Staffing Ltd","4375462","1,544.75","Agency Staff","130220200","13/07/2018","Child Protection","MASH","R1100"
"Wolverhampton City Council","http://opendatacommunities.org/id/metropolitan-district-council/wolverhampton","712481","Frontline Staffing Ltd","4375460","1,237.50","Agency Staff","130219806","13/07/2018","Child Protection","CIN/CP Social Work Unit - Area 5","R1100"
"Wolverhampton City Council","http://opendatacommunities.org/id/metropolitan-district-council/wolverhampton","712481","Frontline Staffing Ltd","4378803","1,546.23","Agency Staff","130220202","18/07/2018","Child Protection","MASH","R1100"
"Wolverhampton City Council","http://opendatacommunities.org/id/metropolitan-district-council/wolverhampton","712481","Frontline Staffing Ltd","4368109","1,544.75","Agency Staff","130220199","06/07/2018","Child Protection","MASH","R1100"
"Wolverhampton City Council","http://opendatacommunities.org/id/metropolitan-district-council/wolverhampton","712481","Frontline Staffing Ltd","4371518","4.95","Agency Staff","130219587","11/07/2018","Child Protection","MASH","R1100"
"Wolverhampton City Council","http://opendatacommunities.org/id/metropolitan-district-council/wolverhampton","712481","Frontline Staffing Ltd","4370835","1,237.50","Agency Staff","130219583","11/07/2018","Child Protection","CIN/CP Social Work Unit - Area 5","R1100"
"Wolverhampton City Council","http://opendatacommunities.org/id/metropolitan-district-council/wolverhampton","712481","Frontline Staffing Ltd","4382592","34.65","Agency Staff","130220709","23/07/2018","Child Protection","MASH","R1100"
"Wolverhampton City Council","http://opendatacommunities.org/id/metropolitan-district-council/wolverhampton","712481","Frontline Staffing Ltd","4362592","990.00","Agency Staff","130218801","04/07/2018","Child Protection","CIN/CP Social Work Unit - Area 5","R1100"
"Wolverhampton City Council","http://opendatacommunities.org/id/metropolitan-district-council/wolverhampton","712481","Frontline Staffing Ltd","4363978","668.64","Agency Staff","130219325","04/07/2018","Child Protection","CIN/CP Social Work Unit - Area 4","R1100"
"Wolverhampton City Council","http://opendatacommunities.org/id/metropolitan-district-council/wolverhampton","712481","Frontline Staffing Ltd","4389431","1,544.75","Agency Staff","130221929","27/07/2018","Child Protection","MASH","R1100"
"Wolverhampton City Council","http://opendatacommunities.org/id/metropolitan-district-council/wolverhampton","712481","Frontline Staffing Ltd","4382590","8.55","Agency Staff","130220707","23/07/2018","Child Protection","MASH","R1100"
"Wolverhampton City Council","http://opendatacommunities.org/id/metropolitan-district-council/wolverhampton","712481","Frontline Staffing Ltd","4384807","1,221.00","Agency Staff","130220858","25/07/2018","Child Protection","CIN/CP Social Work Unit - Area 5","R1100"
"Wolverhampton City Council","http://opendatacommunities.org/id/metropolitan-district-council/wolverhampton","712481","Frontline Staffing Ltd","4378068","1,831.50","Agency Staff","130219968","18/07/2018","Child Protection","CIN/CP Social Work Unit - Area 7","R1100"
"Wolverhampton City Council","http://opendatacommunities.org/id/metropolitan-district-council/wolverhampton","712481","Frontline Staffing Ltd","4375459","1,831.50","Agency Staff","130219805","13/07/2018","Child Protection","CIN/CP Social Work Unit - Area 5","R1100"
"Wolverhampton City Council","http://opendatacommunities.org/id/metropolitan-district-council/wolverhampton","712481","Frontline Staffing Ltd","4371517","1,546.23","Agency Staff","130219586","11/07/2018","Child Protection","MASH","R1100"
"Wolverhampton City Council","http://opendatacommunities.org/id/metropolitan-district-council/wolverhampton","712481","Frontline Staffing Ltd","4368108","1,831.50","Agency Staff","130219582","06/07/2018","Child Protection","CIN/CP Social Work Unit - Area 5","R1100"
"Wolverhampton City Council","http://opendatacommunities.org/id/metropolitan-district-council/wolverhampton","712481","Frontline Staffing Ltd","4362593","940.28","Agency Staff","130218802","04/07/2018","Child Protection","MASH","R1100"
"Wolverhampton City Council","http://opendatacommunities.org/id/metropolitan-district-council/wolverhampton","712481","Frontline Staffing Ltd","4363977","898.49","Agency Staff","130219324","04/07/2018","Child Protection","CIN/CP Social Work Unit - Area 4","R1100"
"Wolverhampton City Council","http://opendatacommunities.org/id/metropolitan-district-council/wolverhampton","712481","Frontline Staffing Ltd","4389844","1,831.50","Agency Staff","130221930","27/07/2018","Child Protection","CIN/CP Social Work Unit - Area 5","R1100"
"Wolverhampton City Council","http://opendatacommunities.org/id/metropolitan-district-council/wolverhampton","712481","Frontline Staffing Ltd","4371519","1,831.50","Agency Staff","130219588","11/07/2018","Child Protection","CIN/CP Social Work Unit - Area 7","R1100"
"Wolverhampton City Council","http://opendatacommunities.org/id/metropolitan-district-council/wolverhampton","712481","Frontline Staffing Ltd","4387514","1,546.23","Agency Staff","130221928","25/07/2018","Child Protection","MASH","R1100"
"Wolverhampton City Council","http://opendatacommunities.org/id/metropolitan-district-council/wolverhampton","712481","Frontline Staffing Ltd","4382591","1,544.75","Agency Staff","130220708","23/07/2018","Child Protection","MASH","R1100"
"Wolverhampton City Council","http://opendatacommunities.org/id/metropolitan-district-council/wolverhampton","712481","Frontline Staffing Ltd","4378069","898.49","Agency Staff","130219969","18/07/2018","Child Protection","CIN/CP Social Work Unit - Area 4","R1100"
"Wolverhampton City Council","http://opendatacommunities.org/id/metropolitan-district-council/wolverhampton","712481","Frontline Staffing Ltd","4375461","940.28","Agency Staff","130219807","13/07/2018","Child Protection","CIN/CP Social Work Unit - Area 4","R1100"
"Wolverhampton City Council","http://opendatacommunities.org/id/metropolitan-district-council/wolverhampton","712481","Frontline Staffing Ltd","4365692","15.30","Agency Staff","130219326","04/07/2018","Child Protection","MASH","R1100"
"Wolverhampton City Council","http://opendatacommunities.org/id/metropolitan-district-council/wolverhampton","712481","Frontline Staffing Ltd","4364289","4.05","Agency Staff","130218963","04/07/2018","Child Protection","MASH","R1100"
"Wolverhampton City Council","http://opendatacommunities.org/id/metropolitan-district-council/wolverhampton","712481","Frontline Staffing Ltd","4389849","8.10","Agency Staff","130221935","27/07/2018","Child Protection","MASH","R1100"
"Wolverhampton City Council","http://opendatacommunities.org/id/metropolitan-district-council/wolverhampton","712481","Frontline Staffing Ltd","4371283","1,232.81","Agency Staff","130219584","13/07/2018","Child Protection","CIN/CP Social Work Unit - Area 6","R1100"
"Wolverhampton City Council","http://opendatacommunities.org/id/metropolitan-district-council/wolverhampton","712481","Frontline Staffing Ltd","4383178","1,831.50","Agency Staff","130220710","23/07/2018","Child Protection","CIN/CP Social Work Unit - Area 5","R1100"
"Wolverhampton City Council","http://opendatacommunities.org/id/metropolitan-district-council/wolverhampton","712481","Frontline Staffing Ltd","4385866","940.28","Agency Staff","130221029","25/07/2018","Child Protection","CIN/CP Social Work Unit - Area 4","R1100"
"Wolverhampton City Council","http://opendatacommunities.org/id/metropolitan-district-council/wolverhampton","712481","Frontline Staffing Ltd","4378070","18.90","Agency Staff","130220201","18/07/2018","Child Protection","MASH","R1100"
"Wolverhampton City Council","http://opendatacommunities.org/id/metropolitan-district-council/wolverhampton","712481","Frontline Staffing Ltd","4371520","21.15","Agency Staff","130220856","11/07/2018","Child Protection","MASH","R1100"
"Wolverhampton City Council","http://opendatacommunities.org/id/metropolitan-district-council/wolverhampton","712482","Jones Lang LaSalle Limited","EN002-0291607","5,500.00","Services - Professional Fees","130221194","25/07/2018","City Development","Strategic Disposals","R4400"
"Wolverhampton City Council","http://opendatacommunities.org/id/metropolitan-district-council/wolverhampton","712502","Granart Limited","9079","52.00","Materials for resale","130222050","11/07/2018","Bereavement Services","Cemeteries","R4008"
"Wolverhampton City Council","http://opendatacommunities.org/id/metropolitan-district-council/wolverhampton","712530","Lift Truck Services Limited","151648","294.00","Hire of Vehicles","190486246","23/07/2018","Fleet Services","Fleet Management","R3200"
"Wolverhampton City Council","http://opendatacommunities.org/id/metropolitan-district-council/wolverhampton","712571","Hillcrest Children�s Services (2) Ltd t/a Options BESD (1) Ltd","1120200822","28,960.66","TPP - Independent Schools","130222766","18/07/2018","Special Educational Needs","SEN Education OOC","R5036"
"Wolverhampton City Council","http://opendatacommunities.org/id/metropolitan-district-council/wolverhampton","712571","Hillcrest Children�s Services (2) Ltd t/a Options BESD (1) Ltd","1120200822","28,960.66","TPP - Independent Schools","130222766","18/07/2018","Special Educational Needs","SEN Education OOC","R5036"
"Wolverhampton City Council","http://opendatacommunities.org/id/metropolitan-district-council/wolverhampton","712571","Hillcrest Children�s Services (2) Ltd t/a Options BESD (1) Ltd","1120200797","17,340.00","TPP - Independent Schools","130222762","18/07/2018","Special Educational Needs","SEN Education OOC","R5036"
"Wolverhampton City Council","http://opendatacommunities.org/id/metropolitan-district-council/wolverhampton","712571","Hillcrest Children�s Services (2) Ltd t/a Options BESD (1) Ltd","1120200797","17,340.00","TPP - Independent Schools","130222762","18/07/2018","Special Educational Needs","SEN Education OOC","R5036"
"Wolverhampton City Council","http://opendatacommunities.org/id/metropolitan-district-council/wolverhampton","712571","Hillcrest Children�s Services (2) Ltd t/a Options BESD (1) Ltd","P177794 22071820180702","15,336.00","TPP - Residential Care - Long Term","190475369","04/07/2018","Looked After Children","Out of City - Pooled Budget","R5400"
"Wolverhampton City Council","http://opendatacommunities.org/id/metropolitan-district-council/wolverhampton","712571","Hillcrest Children�s Services (2) Ltd t/a Options BESD (1) Ltd","P177794 22071820180702","15,336.00","TPP - Residential Care - Long Term","190475369","04/07/2018","Looked After Children","Out of City - Pooled Budget","R5400"
"Wolverhampton City Council","http://opendatacommunities.org/id/metropolitan-district-council/wolverhampton","712571","Hillcrest Children�s Services (2) Ltd t/a Options BESD (1) Ltd","1120200833","19,197.86","TPP - Independent Schools","130222767","18/07/2018","Special Educational Needs","SEN Education OOC","R5036"
"Wolverhampton City Council","http://opendatacommunities.org/id/metropolitan-district-council/wolverhampton","712571","Hillcrest Children�s Services (2) Ltd t/a Options BESD (1) Ltd","1120200833","19,197.86","TPP - Independent Schools","130222767","18/07/2018","Special Educational Needs","SEN Education OOC","R5036"
"Wolverhampton City Council","http://opendatacommunities.org/id/metropolitan-district-council/wolverhampton","712571","Hillcrest Children�s Services (2) Ltd t/a Options BESD (1) Ltd","1120200821","28,960.66","TPP - Independent Schools","130222765","18/07/2018","Special Educational Needs","SEN Education OOC","R5036"
"Wolverhampton City Council","http://opendatacommunities.org/id/metropolitan-district-council/wolverhampton","712571","Hillcrest Children�s Services (2) Ltd t/a Options BESD (1) Ltd","1120200821","28,960.66","TPP - Independent Schools","130222765","18/07/2018","Special Educational Needs","SEN Education OOC","R5036"
"Wolverhampton City Council","http://opendatacommunities.org/id/metropolitan-district-council/wolverhampton","712571","Hillcrest Children�s Services (2) Ltd t/a Options BESD (1) Ltd","1120200820","28,960.66","TPP - Independent Schools","130222764","18/07/2018","Special Educational Needs","SEN Education OOC","R5036"
"Wolverhampton City Council","http://opendatacommunities.org/id/metropolitan-district-council/wolverhampton","712571","Hillcrest Children�s Services (2) Ltd t/a Options BESD (1) Ltd","1120200820","28,960.66","TPP - Independent Schools","130222764","18/07/2018","Special Educational Needs","SEN Education OOC","R5036"
"Wolverhampton City Council","http://opendatacommunities.org/id/metropolitan-district-council/wolverhampton","712571","Hillcrest Children�s Services (2) Ltd t/a Options BESD (1) Ltd","1120200818","28,960.66","TPP - Independent Schools","130222763","18/07/2018","Special Educational Needs","SEN Education OOC","R5036"
"Wolverhampton City Council","http://opendatacommunities.org/id/metropolitan-district-council/wolverhampton","712571","Hillcrest Children�s Services (2) Ltd t/a Options BESD (1) Ltd","1120200818","28,960.66","TPP - Independent Schools","130222763","18/07/2018","Special Educational Needs","SEN Education OOC","R5036"
"Wolverhampton City Council","http://opendatacommunities.org/id/metropolitan-district-council/wolverhampton","712583","Acuity Legal Limited","20889","1,800.00","Services - Professional Fees","130219684","04/07/2018","Legal Services","Centralised External Legal Costs","R4400"
"Wolverhampton City Council","http://opendatacommunities.org/id/metropolitan-district-council/wolverhampton","712644","Harper Group Construction Limited","INV000499","75,159.06","Construction and Conversion","130222785","18/07/2018","-","Development of Cultural Estate","C1100"
"Wolverhampton City Council","http://opendatacommunities.org/id/metropolitan-district-council/wolverhampton","712763","WCC CTAX and NNDR uploads only","612346921127 (a4)","112.00","No Recourse to Public Funds","190488865","25/07/2018","Child Protection","CIN/CP Social Work Unit - Area 5","R6314"
"Wolverhampton City Council","http://opendatacommunities.org/id/metropolitan-district-council/wolverhampton","712763","WCC CTAX and NNDR uploads only","612346367065","1,272.78","No Recourse to Public Funds","190484535","13/07/2018","Child Protection","CIN/CP Social Work Unit - Area 4","R6314"
"Wolverhampton City Council","http://opendatacommunities.org/id/metropolitan-district-council/wolverhampton","712763","WCC CTAX and NNDR uploads only","612345019535(a4)","96.00","No Recourse to Public Funds","190488864","25/07/2018","Child Protection","CIN/CP Social Work Unit - Area 5","R6314"
"Wolverhampton City Council","http://opendatacommunities.org/id/metropolitan-district-council/wolverhampton","712763","WCC CTAX and NNDR uploads only","1116509M 10/07/2018","365.21","Accommodation Costs","190483868","11/07/2018","Looked After Children","LAC Transitions Team","R4900"
"Wolverhampton City Council","http://opendatacommunities.org/id/metropolitan-district-council/wolverhampton","712763","WCC CTAX and NNDR uploads only","612346971272 (a4)","72.00","No Recourse to Public Funds","190488867","25/07/2018","Child Protection","CIN/CP Social Work Unit - Area 5","R6314"
"Wolverhampton City Council","http://opendatacommunities.org/id/metropolitan-district-council/wolverhampton","712763","WCC CTAX and NNDR uploads only","P17834420180703","2,000.00","TPP - Accommodation","190475882","04/07/2018","Community Financial Support","Destitute Plus","R5603"
"Wolverhampton City Council","http://opendatacommunities.org/id/metropolitan-district-council/wolverhampton","712763","WCC CTAX and NNDR uploads only","H10006 R4920 Q","2,495.88","Refunds","190475658","04/07/2018","Housing Revenue Account","Housing Revenue Summary Account","R4920"
"Wolverhampton City Council","http://opendatacommunities.org/id/metropolitan-district-council/wolverhampton","712763","WCC CTAX and NNDR uploads only","612346317980(a4)","86.00","No Recourse to Public Funds","190488866","25/07/2018","Child Protection","CIN/CP Social Work Unit - Area 5","R6314"
"Wolverhampton City Council","http://opendatacommunities.org/id/metropolitan-district-council/wolverhampton","712763","WCC CTAX and NNDR uploads only","612345995011(a4)","101.74","No Recourse to Public Funds","190488868","25/07/2018","Child Protection","CIN/CP Social Work Unit - Area 5","R6314"
"Wolverhampton City Council","http://opendatacommunities.org/id/metropolitan-district-council/wolverhampton","712819","Ramada Park Hall Hotel & Spa","INV12204A","573.00","Conference Expenses","130221196","06/07/2018","Looked After Children","Fostering Team & Allowances","R4611"
"Wolverhampton City Council","http://opendatacommunities.org/id/metropolitan-district-council/wolverhampton","712819","Ramada Park Hall Hotel & Spa","INV12912","2,916.67","Training Expenses","130221938","11/07/2018","Looked After Children","Fostering Team & Allowances","R1650"
"Wolverhampton City Council","http://opendatacommunities.org/id/metropolitan-district-council/wolverhampton","712819","Ramada Park Hall Hotel & Spa","INV12204","3,354.17","Room Hire","130221195","04/07/2018","Looked After Children","Fostering Team & Allowances","R2201"
"Wolverhampton City Council","http://opendatacommunities.org/id/metropolitan-district-council/wolverhampton","712825","Jumping Jos Day Nursery","EYPP Summer 2018","1,240.20","TPP - Private Nursery Education Funding","190489844","25/07/2018","Early Years","Early Years Pupil Premium","R5035"
"Wolverhampton City Council","http://opendatacommunities.org/id/metropolitan-district-council/wolverhampton","712825","Jumping Jos Day Nursery","TFT Summer 2018 Inst 2","6,413.76","TPP - Private Nursery Education Funding","190489836","25/07/2018","Early Years","Early Years Entitlement Funding for Disadvantaged 2 Year Olds","R5035"
"Wolverhampton City Council","http://opendatacommunities.org/id/metropolitan-district-council/wolverhampton","712825","Jumping Jos Day Nursery","NEF Summer 2018 INST 2","25,245.00","TPP - Private Nursery Education Funding","190489824","25/07/2018","Early Years","Early Years Universal Entitlement for 3 and 4 Year Olds","R5035"
"Wolverhampton City Council","http://opendatacommunities.org/id/metropolitan-district-council/wolverhampton","712827","Shooting Stars Nurseries","TFT Summer 2018 Inst 2","754.56","TPP - Private Nursery Education Funding","190489836","25/07/2018","Early Years","Early Years Entitlement Funding for Disadvantaged 2 Year Olds","R5035"
"Wolverhampton City Council","http://opendatacommunities.org/id/metropolitan-district-council/wolverhampton","712827","Shooting Stars Nurseries","EYPP Summer 2018","95.40","TPP - Private Nursery Education Funding","190489844","25/07/2018","Early Years","Early Years Pupil Premium","R5035"
"Wolverhampton City Council","http://opendatacommunities.org/id/metropolitan-district-council/wolverhampton","712827","Shooting Stars Nurseries","NEF Summer 2018 INST 2","24,378.00","TPP - Private Nursery Education Funding","190489824","25/07/2018","Early Years","Early Years Universal Entitlement for 3 and 4 Year Olds","R5035"
"Wolverhampton City Council","http://opendatacommunities.org/id/metropolitan-district-council/wolverhampton","712830","Elaine Gosnell","NEF Summer 2018 INST 2","1,224.00","TPP - Private Nursery Education Funding","190489824","25/07/2018","Early Years","Early Years Universal Entitlement for 3 and 4 Year Olds","R5035"
"Wolverhampton City Council","http://opendatacommunities.org/id/metropolitan-district-council/wolverhampton","712874","Riverside Environmental Services Limited","I027722","480.00","R&M - Departmental planned (external)","130221683","25/07/2018","Corporate Asset Management","Statutory Surveys","R2001"
"Wolverhampton City Council","http://opendatacommunities.org/id/metropolitan-district-council/wolverhampton","712874","Riverside Environmental Services Limited","I027739","250.00","R&M - Departmental planned (external)","130221696","25/07/2018","Corporate Asset Management","Statutory Surveys","R2001"
"Wolverhampton City Council","http://opendatacommunities.org/id/metropolitan-district-council/wolverhampton","712874","Riverside Environmental Services Limited","I027746","150.00","R&M - Departmental planned (external)","130221700","25/07/2018","Corporate Asset Management","Statutory Surveys","R2001"
"Wolverhampton City Council","http://opendatacommunities.org/id/metropolitan-district-council/wolverhampton","712874","Riverside Environmental Services Limited","I027727","725.00","Construction and Conversion","130221685","25/07/2018","-","Capital Maintenance - Heating Pipework Upgrades","C1100"
"Wolverhampton City Council","http://opendatacommunities.org/id/metropolitan-district-council/wolverhampton","712874","Riverside Environmental Services Limited","I027730","550.00","R&M - Departmental planned (external)","130221688","25/07/2018","School Planning & Resources","Other Support Services","R2001"
"Wolverhampton City Council","http://opendatacommunities.org/id/metropolitan-district-council/wolverhampton","712874","Riverside Environmental Services Limited","I027729","1,575.00","R&M - Departmental planned (external)","130221687","25/07/2018","Corporate Asset Management","Statutory Surveys","R2001"
"Wolverhampton City Council","http://opendatacommunities.org/id/metropolitan-district-council/wolverhampton","712874","Riverside Environmental Services Limited","I027738","50.00","R&M - Departmental planned (external)","130221695","25/07/2018","Corporate Asset Management","Statutory Surveys","R2001"
"Wolverhampton City Council","http://opendatacommunities.org/id/metropolitan-district-council/wolverhampton","712874","Riverside Environmental Services Limited","I027736","750.00","R&M - Departmental planned (external)","130221693","25/07/2018","Corporate Asset Management","Statutory Surveys","R2001"
"Wolverhampton City Council","http://opendatacommunities.org/id/metropolitan-district-council/wolverhampton","712874","Riverside Environmental Services Limited","I027742","250.00","R&M - Departmental planned (external)","130222280","25/07/2018","Corporate Asset Management","Statutory Surveys","R2001"
"Wolverhampton City Council","http://opendatacommunities.org/id/metropolitan-district-council/wolverhampton","712874","Riverside Environmental Services Limited","I027728","850.00","R&M - Departmental planned (external)","130221686","25/07/2018","School Planning & Resources","Other Support Services","R2001"
"Wolverhampton City Council","http://opendatacommunities.org/id/metropolitan-district-council/wolverhampton","712874","Riverside Environmental Services Limited","I027741","250.00","R&M - Departmental planned (external)","130222279","25/07/2018","Corporate Asset Management","Statutory Surveys","R2001"
"Wolverhampton City Council","http://opendatacommunities.org/id/metropolitan-district-council/wolverhampton","712874","Riverside Environmental Services Limited","I027734","800.00","R&M - Departmental planned (external)","130221691","25/07/2018","School Planning & Resources","Other Support Services","R2001"
"Wolverhampton City Council","http://opendatacommunities.org/id/metropolitan-district-council/wolverhampton","712874","Riverside Environmental Services Limited","I027735","950.00","R&M - Departmental planned (external)","130221692","25/07/2018","School Planning & Resources","Other Support Services","R2001"
"Wolverhampton City Council","http://opendatacommunities.org/id/metropolitan-district-council/wolverhampton","712874","Riverside Environmental Services Limited","I027745","1,500.00","R&M - Departmental planned (external)","130221699","25/07/2018","Maintenance Programme","Centralised R&M","R2001"
"Wolverhampton City Council","http://opendatacommunities.org/id/metropolitan-district-council/wolverhampton","712874","Riverside Environmental Services Limited","I027719","365.00","R&M - Departmental planned (external)","130221682","25/07/2018","Corporate Asset Management","Statutory Surveys","R2001"
"Wolverhampton City Council","http://opendatacommunities.org/id/metropolitan-district-council/wolverhampton","712874","Riverside Environmental Services Limited","I027744","545.00","R&M - Departmental planned (external)","130221698","25/07/2018","Schools","Pupil Referral Units - Orchard Centre","R2001"
"Wolverhampton City Council","http://opendatacommunities.org/id/metropolitan-district-council/wolverhampton","712874","Riverside Environmental Services Limited","I027740","250.00","R&M - Departmental planned (external)","130222278","25/07/2018","Corporate Asset Management","Statutory Surveys","R2001"
"Wolverhampton City Council","http://opendatacommunities.org/id/metropolitan-district-council/wolverhampton","712874","Riverside Environmental Services Limited","I027731","825.00","R&M - Departmental planned (external)","130221689","25/07/2018","School Planning & Resources","Other Support Services","R2001"
"Wolverhampton City Council","http://opendatacommunities.org/id/metropolitan-district-council/wolverhampton","712874","Riverside Environmental Services Limited","I027743","395.00","R&M - Departmental planned (external)","130221697","25/07/2018","School Planning & Resources","Other Support Services","R2001"
"Wolverhampton City Council","http://opendatacommunities.org/id/metropolitan-district-council/wolverhampton","712874","Riverside Environmental Services Limited","I027725","206.16","R&M - Departmental planned (external)","130221684","25/07/2018","Corporate Asset Management","Statutory Surveys","R2001"
"Wolverhampton City Council","http://opendatacommunities.org/id/metropolitan-district-council/wolverhampton","712874","Riverside Environmental Services Limited","I027737","130.00","R&M - Departmental planned (external)","130221694","25/07/2018","Corporate Asset Management","Statutory Surveys","R2001"
"Wolverhampton City Council","http://opendatacommunities.org/id/metropolitan-district-council/wolverhampton","712874","Riverside Environmental Services Limited","I027732","1,075.00","R&M - Departmental planned (external)","130221690","25/07/2018","School Planning & Resources","Other Support Services","R2001"
"Wolverhampton City Council","http://opendatacommunities.org/id/metropolitan-district-council/wolverhampton","712917","Dr Abbie L Pugh","DRAP/57658","580.80","Services - Professional Fees","190485093","18/07/2018","Public Service Reform","Coroners Service","R4400"
"Wolverhampton City Council","http://opendatacommunities.org/id/metropolitan-district-council/wolverhampton","712930","Gloucester Street Community Centre","SI-645","135.00","TPP - Child Care provided for client","130220859","18/07/2018","Adult Education","Discretionary Fund","R5034"
"Wolverhampton City Council","http://opendatacommunities.org/id/metropolitan-district-council/wolverhampton","712930","Gloucester Street Community Centre","SI-644","135.00","TPP - Child Care provided for client","130221197","18/07/2018","Adult Education","Discretionary Fund","R5034"
"Wolverhampton City Council","http://opendatacommunities.org/id/metropolitan-district-council/wolverhampton","712936","The Superintendent the London Gazette","100718/JBKM","29.28","Publications","190490330","27/07/2018","Public Service Reform","Register Office","R4310"
"Wolverhampton City Council","http://opendatacommunities.org/id/metropolitan-district-council/wolverhampton","712956","Dr Paul E Hiley","DRPH/57696","774.40","Services - Professional Fees","190485094","18/07/2018","Public Service Reform","Coroners Service","R4400"
"Wolverhampton City Council","http://opendatacommunities.org/id/metropolitan-district-council/wolverhampton","713009","Wightwick Hall School","WHSI72","16,342.14","TPP - Alternative Provision of Education","130221506","06/07/2018","Special Educational Needs","SEN Education OOC","R5037"
"Wolverhampton City Council","http://opendatacommunities.org/id/metropolitan-district-council/wolverhampton","713009","Wightwick Hall School","WHSI77","12,256.61","TPP - Alternative Provision of Education","130223465","25/07/2018","Special Educational Needs","SEN Education OOC","R5037"
"Wolverhampton City Council","http://opendatacommunities.org/id/metropolitan-district-council/wolverhampton","713019","Hands on Wednesfield","11/07/2018 blue form","500.00","Donations","130223128","23/07/2018","Central Corporate Budgets","Corporate Directorate Provision","R9140"
"Wolverhampton City Council","http://opendatacommunities.org/id/metropolitan-district-council/wolverhampton","713044","Prestbury Medical Practice","FOS4101","76.24","Services - Professional Fees","190481150","06/07/2018","Looked After Children","Fostering Team & Allowances","R4400"
"Wolverhampton City Council","http://opendatacommunities.org/id/metropolitan-district-council/wolverhampton","713059","Sage Pay Europe Ltd (formely Sage Pay)","EU-00592287","806.30","Services - Bank Charges","130218444","11/07/2018","Central Corporate Budgets","Corporate Management (Bank Charges)","R4403"
"Wolverhampton City Council","http://opendatacommunities.org/id/metropolitan-district-council/wolverhampton","713059","Sage Pay Europe Ltd (formely Sage Pay)","EU-00632060","792.50","Services - Bank Charges","130221405","25/07/2018","Central Corporate Budgets","Corporate Management (Bank Charges)","R4403"
"Wolverhampton City Council","http://opendatacommunities.org/id/metropolitan-district-council/wolverhampton","713109","DMB Consultancy Ltd","500","1,000.00","Services - Professional Fees","130219328","06/07/2018","Human Resources","Doctors Service","R4400"
"Wolverhampton City Council","http://opendatacommunities.org/id/metropolitan-district-council/wolverhampton","713131","Bigdug Ltd","933205","715.00","Equipment - Purchase","130222281","11/07/2018","Adult Education","Old Hall Street Main","R4000"
"Wolverhampton City Council","http://opendatacommunities.org/id/metropolitan-district-council/wolverhampton","713131","Bigdug Ltd","933205","405.00","Equipment - Purchase","130222281","11/07/2018","Adult Education","Old Hall Street Main","R4000"
"Wolverhampton City Council","http://opendatacommunities.org/id/metropolitan-district-council/wolverhampton","713169","New England Flooring Company Ltd","5591","1,124.00","R&M - Departmental planned (external)","130220443","11/07/2018","Facilities Management","Magistrates","R2001"
"Wolverhampton City Council","http://opendatacommunities.org/id/metropolitan-district-council/wolverhampton","713169","New England Flooring Company Ltd","5596","4,399.00","R&M - Departmental planned (external)","130221030","25/07/2018","Facilities Management","Magistrates","R2001"
"Wolverhampton City Council","http://opendatacommunities.org/id/metropolitan-district-council/wolverhampton","713169","New England Flooring Company Ltd","5590","4,999.00","R&M - Departmental planned (external)","130220442","11/07/2018","Facilities Management","Magistrates","R2001"
"Wolverhampton City Council","http://opendatacommunities.org/id/metropolitan-district-council/wolverhampton","713246","Midland Foods Limited","1158036","106.17","Provisions (Not for resale)","130221406","04/07/2018","Older People Provider Services","Bradley Lodge Resource Centre","R4101"
"Wolverhampton City Council","http://opendatacommunities.org/id/metropolitan-district-council/wolverhampton","713257","Klipspringer Ltd","SI0263160","75.00","Equipment - Purchase","130223631","27/07/2018","Public Protection","EHTS Operational Costs","R4000"
"Wolverhampton City Council","http://opendatacommunities.org/id/metropolitan-district-council/wolverhampton","713257","Klipspringer Ltd","SI0263160","9.00","Equipment - Purchase","130223631","27/07/2018","Public Protection","EHTS Operational Costs","R4000"
"Wolverhampton City Council","http://opendatacommunities.org/id/metropolitan-district-council/wolverhampton","713258","MTH Cleaning Equipment Ltd","MTH163757","99.80","Equipment - R & M","130221031","04/07/2018","Transportation","Passenger Transport - General","R4003"
"Wolverhampton City Council","http://opendatacommunities.org/id/metropolitan-district-council/wolverhampton","713286","Energas","4804052","22.76","Equipment - R & M","190488085","25/07/2018","Fleet Services","Fleet Management","R4003"
"Wolverhampton City Council","http://opendatacommunities.org/id/metropolitan-district-council/wolverhampton","713286","Energas","4804052","11.38","Equipment - R & M","190488085","25/07/2018","Fleet Services","Fleet Management","R4003"
"Wolverhampton City Council","http://opendatacommunities.org/id/metropolitan-district-council/wolverhampton","713286","Energas","4804052","27.12","Equipment - R & M","190488085","25/07/2018","Fleet Services","Fleet Management","R4003"
"Wolverhampton City Council","http://opendatacommunities.org/id/metropolitan-district-council/wolverhampton","713286","Energas","4804052","9.04","Equipment - R & M","190488085","25/07/2018","Fleet Services","Fleet Management","R4003"
"Wolverhampton City Council","http://opendatacommunities.org/id/metropolitan-district-council/wolverhampton","713416","The Radar Key Co.","5456","230.00","Equipment - Purchase","130219663","11/07/2018","Customer Services","City Direct","R4000"
"Wolverhampton City Council","http://opendatacommunities.org/id/metropolitan-district-council/wolverhampton","713567","Yarrington Limited","14911","520.00","Marketing \ Non-staff advertising","130219970","18/07/2018","Corporate Communications","Communications & Marketing - General","R4317"
"Wolverhampton City Council","http://opendatacommunities.org/id/metropolitan-district-council/wolverhampton","713567","Yarrington Limited","14891","4,762.50","Services - Consultants","130218967","04/07/2018","Skills","Work Box","R4404"
"Wolverhampton City Council","http://opendatacommunities.org/id/metropolitan-district-council/wolverhampton","713637","St Mary�s Catholic Primary Academy","St Marys Catholic Academy Early Years Payment Autumn Term Interim 2018-19","15,055.43","Grant Payments","190484585","13/07/2018","Central Education","Academy Early years","R4700"
"Wolverhampton City Council","http://opendatacommunities.org/id/metropolitan-district-council/wolverhampton","713637","St Mary�s Catholic Primary Academy","St Marys Catholic Academy Early Years Payment Summer Term 2018-19","30,621.60","Grant Payments","190484561","13/07/2018","Central Education","Academy Early years","R4700"
"Wolverhampton City Council","http://opendatacommunities.org/id/metropolitan-district-council/wolverhampton","713637","St Mary�s Catholic Primary Academy","EYPP Summer 2018","763.20","TPP - Private Nursery Education Funding","190489844","25/07/2018","Early Years","Early Years Pupil Premium","R5035"
"Wolverhampton City Council","http://opendatacommunities.org/id/metropolitan-district-council/wolverhampton","713638","Corpus Christi Catholic Primary Academy","Corpus Christi Catholic Academy Early Years Payment Autumn Term Interim 2018-19","13,858.16","Grant Payments","190484584","13/07/2018","Central Education","Academy Early years","R4700"
"Wolverhampton City Council","http://opendatacommunities.org/id/metropolitan-district-council/wolverhampton","713638","Corpus Christi Catholic Primary Academy","EYPP Summer 2018","1,240.20","TPP - Private Nursery Education Funding","190489844","25/07/2018","Early Years","Early Years Pupil Premium","R5035"
"Wolverhampton City Council","http://opendatacommunities.org/id/metropolitan-district-council/wolverhampton","713638","Corpus Christi Catholic Primary Academy","Corpus Christi Catholic Academy Early Years Payment Summer Term 2018-19","17,763.83","Grant Payments","190484560","13/07/2018","Central Education","Academy Early years","R4700"
"Wolverhampton City Council","http://opendatacommunities.org/id/metropolitan-district-council/wolverhampton","713639","St Martins Multi Academy Trust","EYPP Summer 2018","1,717.20","TPP - Private Nursery Education Funding","190489844","25/07/2018","Early Years","Early Years Pupil Premium","R5035"
"Wolverhampton City Council","http://opendatacommunities.org/id/metropolitan-district-council/wolverhampton","713639","St Martins Multi Academy Trust","St Martin�s Academy Early Years Payment Autumn Term Interim 2018-19","17,560.20","Grant Payments","190484587","13/07/2018","Central Education","Academy Early years","R4700"
"Wolverhampton City Council","http://opendatacommunities.org/id/metropolitan-district-council/wolverhampton","713639","St Martins Multi Academy Trust","St Martin�s Academy Early Years Payment Summer Term 2018-19","38,975.40","Grant Payments","190484563","13/07/2018","Central Education","Academy Early years","R4700"
"Wolverhampton City Council","http://opendatacommunities.org/id/metropolitan-district-council/wolverhampton","713640","Field View Academy","EYPP Summer 2018","3,243.60","TPP - Private Nursery Education Funding","190489844","25/07/2018","Early Years","Early Years Pupil Premium","R5035"
"Wolverhampton City Council","http://opendatacommunities.org/id/metropolitan-district-council/wolverhampton","713640","Field View Academy","T42 Summer 18 Inst 1&2 Rising 3�s","943.20","TPP - Private Nursery Education Funding","190489834","25/07/2018","Early Years","Early Years Entitlement Funding for Disadvantaged 2 Year Olds","R5035"
"Wolverhampton City Council","http://opendatacommunities.org/id/metropolitan-district-council/wolverhampton","713640","Field View Academy","Field View Academy Early Years Payment Summer Term 2018-19","45,312.45","Grant Payments","190484562","13/07/2018","Central Education","Academy Early years","R4700"
"Wolverhampton City Council","http://opendatacommunities.org/id/metropolitan-district-council/wolverhampton","713640","Field View Academy","Field View Academy Early Years Payment Autumn Term Interim 2018-19","18,408.60","Grant Payments","190484586","13/07/2018","Central Education","Academy Early years","R4700"
"Wolverhampton City Council","http://opendatacommunities.org/id/metropolitan-district-council/wolverhampton","713670","Wolverhampton Bid Company Ltd","INV-0415","144,641.05","TPP - Business Improvement District (BID) Levy","190481442","06/07/2018","Revenues & Benefits","Business Improvement District","R5152"
"Wolverhampton City Council","http://opendatacommunities.org/id/metropolitan-district-council/wolverhampton","713861","SecurePro Ltd","2250","1,920.00","Training Expenses","130223105","23/07/2018","Skills","IMPACT","R1650"
"Wolverhampton City Council","http://opendatacommunities.org/id/metropolitan-district-council/wolverhampton","713870","Print Express","00934795","360.00","Stationery","130219664","04/07/2018","Safeguarding","Safeguarding Partnership Board","R4308"
"Wolverhampton City Council","http://opendatacommunities.org/id/metropolitan-district-council/wolverhampton","713873","Quartzelec Ltd","7133375","1,835.65","R&M - Departmental planned (external)","130223467","25/07/2018","Maintenance Programme","Centralised R&M","R2001"
"Wolverhampton City Council","http://opendatacommunities.org/id/metropolitan-district-council/wolverhampton","713873","Quartzelec Ltd","7136911","714.58","R&M - Departmental planned (external)","130221198","04/07/2018","Maintenance Programme","Centralised R&M","R2001"
"Wolverhampton City Council","http://opendatacommunities.org/id/metropolitan-district-council/wolverhampton","713873","Quartzelec Ltd","7136911","585.00","R&M - Departmental planned (external)","130221198","04/07/2018","Maintenance Programme","Centralised R&M","R2001"
"Wolverhampton City Council","http://opendatacommunities.org/id/metropolitan-district-council/wolverhampton","713873","Quartzelec Ltd","7133597","585.00","R&M - Departmental planned (external)","130219062","04/07/2018","Maintenance Programme","Centralised R&M","R2001"
"Wolverhampton City Council","http://opendatacommunities.org/id/metropolitan-district-council/wolverhampton","713873","Quartzelec Ltd","7134657","1,645.15","R&M - Departmental planned (external)","130223468","25/07/2018","Maintenance Programme","Centralised R&M","R2001"
"Wolverhampton City Council","http://opendatacommunities.org/id/metropolitan-district-council/wolverhampton","713882","Frontier Plastics Ltd","N59531","3,563.54","TPP - Public Health Contracts","130220203","23/07/2018","Healthy Life Expectancy","Alcohol and Drug","R5060"
"Wolverhampton City Council","http://opendatacommunities.org/id/metropolitan-district-council/wolverhampton","713882","Frontier Plastics Ltd","N59531","5.00","TPP - Public Health Contracts","130220203","23/07/2018","Healthy Life Expectancy","Alcohol and Drug","R5060"
"Wolverhampton City Council","http://opendatacommunities.org/id/metropolitan-district-council/wolverhampton","713911","Total Reclaims Demolition Ltd","5062","16,918.59","Construction and Conversion","130216989","04/07/2018","-","Westside","C1100"
"Wolverhampton City Council","http://opendatacommunities.org/id/metropolitan-district-council/wolverhampton","713926","Cefndy Healthcare","800797063","253.32","Equipment - Purchase","130220596","04/07/2018","Independent Living Service","Independent Living Service","R4000"
"Wolverhampton City Council","http://opendatacommunities.org/id/metropolitan-district-council/wolverhampton","713952","Unit 4 Business Software Limited","20000006032","500.00","Computing - Purchase of Software","130220860","25/07/2018","Strategic Finance","Agresso System Support","R4531"
"Wolverhampton City Council","http://opendatacommunities.org/id/metropolitan-district-council/wolverhampton","713986","GVA Grimley Limited","1066675","5,950.00","Services - Professional Fees","130222282","25/07/2018","Estates and Valuations","Estates and Valuations Team","R4400"
"Wolverhampton City Council","http://opendatacommunities.org/id/metropolitan-district-council/wolverhampton","714048","Lisa Cawthorn","74","388.70","Services - Professional Fees","130222573","25/07/2018","Looked After Children","Panel Expenses Fostering & Adoption","R4400"
"Wolverhampton City Council","http://opendatacommunities.org/id/metropolitan-district-council/wolverhampton","714048","Lisa Cawthorn","73","428.30","Services - Professional Fees","130220444","25/07/2018","Looked After Children","Panel Expenses Fostering & Adoption","R4400"
"Wolverhampton City Council","http://opendatacommunities.org/id/metropolitan-district-council/wolverhampton","714127","Flavor of paradise Caf�","011","12.00","Catering","130220598","23/07/2018","Healthier Places Service","Healthy Schools Team","R4100"
"Wolverhampton City Council","http://opendatacommunities.org/id/metropolitan-district-council/wolverhampton","714127","Flavor of paradise Caf�","010","18.00","Catering","130220597","23/07/2018","Healthier Places Service","Healthy Schools Team","R4100"
"Wolverhampton City Council","http://opendatacommunities.org/id/metropolitan-district-council/wolverhampton","714159","GL Assessment","SINV00178700","799.00","Equipment - Purchase","130221587","06/07/2018","Schools","The King�s Church of England School","R4000"
"Wolverhampton City Council","http://opendatacommunities.org/id/metropolitan-district-council/wolverhampton","714172","36 Bedford Row","36BR/5","1,800.00","Services - Professional Fees","130221703","25/07/2018","Legal Services","Centralised External Legal Costs","R4400"
"Wolverhampton City Council","http://opendatacommunities.org/id/metropolitan-district-council/wolverhampton","714172","36 Bedford Row","36BR/3","1,800.00","Services - Professional Fees","130221199","06/07/2018","Legal Services","Centralised External Legal Costs","R4400"
"Wolverhampton City Council","http://opendatacommunities.org/id/metropolitan-district-council/wolverhampton","714172","36 Bedford Row","36BR/4","1,800.00","Services - Professional Fees","130221200","06/07/2018","Legal Services","Centralised External Legal Costs","R4400"
"Wolverhampton City Council","http://opendatacommunities.org/id/metropolitan-district-council/wolverhampton","714205","Dolphin Media & Design Ltd","208L","5,831.92","Computing - Purchase of Hardware","130216992","27/07/2018","ICTS","Strategic ICTS (ICT Service Budget)","R4530"
"Wolverhampton City Council","http://opendatacommunities.org/id/metropolitan-district-council/wolverhampton","714253","Regeneris Consulting Ltd","2018/4994","6,038.50","Construction and Conversion","130218201","04/07/2018","-","GF - Accessing Growth Fund","C1100"
"Wolverhampton City Council","http://opendatacommunities.org/id/metropolitan-district-council/wolverhampton","714276","Speller Metcalfe Malvern Limited","CIN7269","537,317.35","Construction and Conversion","130220861","04/07/2018","-","South Side","C1100"
"Wolverhampton City Council","http://opendatacommunities.org/id/metropolitan-district-council/wolverhampton","714279","Tusker","SIN410875","354.28","Services - Professional Fees","130219973","18/07/2018","Human Resources","Salary Sacrifice Schemes","R4400"
"Wolverhampton City Council","http://opendatacommunities.org/id/metropolitan-district-council/wolverhampton","714279","Tusker","SIN416752","472.16","Services - Professional Fees","130221704","27/07/2018","Human Resources","Salary Sacrifice Schemes","R4400"
"Wolverhampton City Council","http://opendatacommunities.org/id/metropolitan-district-council/wolverhampton","714279","Tusker","SIN408842","308.98","Services - Professional Fees","130219808","11/07/2018","Human Resources","Salary Sacrifice Schemes","R4400"
"Wolverhampton City Council","http://opendatacommunities.org/id/metropolitan-district-council/wolverhampton","714279","Tusker","SIN410503","334.18","Services - Professional Fees","130219972","13/07/2018","Human Resources","Salary Sacrifice Schemes","R4400"
"Wolverhampton City Council","http://opendatacommunities.org/id/metropolitan-district-council/wolverhampton","714279","Tusker","SIN414300","341.62","Services - Professional Fees","130221201","25/07/2018","Human Resources","Salary Sacrifice Schemes","R4400"
"Wolverhampton City Council","http://opendatacommunities.org/id/metropolitan-district-council/wolverhampton","714279","Tusker","SIN415694","25,845.23","Services - Professional Fees","130221509","27/07/2018","Human Resources","Salary Sacrifice Schemes","R4400"
"Wolverhampton City Council","http://opendatacommunities.org/id/metropolitan-district-council/wolverhampton","714309","Excel Tuition Centre","EWAFWB0005","1,125.09","Services - Professional Fees","130223365","25/07/2018","Looked After Children","Pupil Premium","R4400"
"Wolverhampton City Council","http://opendatacommunities.org/id/metropolitan-district-council/wolverhampton","714309","Excel Tuition Centre","EWAFWB0004","625.05","Services - Professional Fees","130221202","04/07/2018","Looked After Children","Pupil Premium","R4400"
"Wolverhampton City Council","http://opendatacommunities.org/id/metropolitan-district-council/wolverhampton","714313","Midcounties - Finchfield Nursery","TFT Summer 2018 Inst 2","8,043.40","TPP - Private Nursery Education Funding","190489836","25/07/2018","Early Years","Early Years Entitlement Funding for Disadvantaged 2 Year Olds","R5035"
"Wolverhampton City Council","http://opendatacommunities.org/id/metropolitan-district-council/wolverhampton","714313","Midcounties - Finchfield Nursery","NEF Summer 2018 INST 2","64,928.95","TPP - Private Nursery Education Funding","190489824","25/07/2018","Early Years","Early Years Universal Entitlement for 3 and 4 Year Olds","R5035"
"Wolverhampton City Council","http://opendatacommunities.org/id/metropolitan-district-council/wolverhampton","714313","Midcounties - Finchfield Nursery","EYPP Summer 2018","95.40","TPP - Private Nursery Education Funding","190489844","25/07/2018","Early Years","Early Years Pupil Premium","R5035"
"Wolverhampton City Council","http://opendatacommunities.org/id/metropolitan-district-council/wolverhampton","714316","Little Oaks Day Nursery","NEF Summer 2018 INST 2","34,784.24","TPP - Private Nursery Education Funding","190489824","25/07/2018","Early Years","Early Years Universal Entitlement for 3 and 4 Year Olds","R5035"
"Wolverhampton City Council","http://opendatacommunities.org/id/metropolitan-district-council/wolverhampton","714316","Little Oaks Day Nursery","TFT Summer 2018 Inst 2","8,111.52","TPP - Private Nursery Education Funding","190489836","25/07/2018","Early Years","Early Years Entitlement Funding for Disadvantaged 2 Year Olds","R5035"
"Wolverhampton City Council","http://opendatacommunities.org/id/metropolitan-district-council/wolverhampton","714316","Little Oaks Day Nursery","EYPP Summer 2018","1,240.20","TPP - Private Nursery Education Funding","190489844","25/07/2018","Early Years","Early Years Pupil Premium","R5035"
"Wolverhampton City Council","http://opendatacommunities.org/id/metropolitan-district-council/wolverhampton","714316","Little Oaks Day Nursery","Enhanced Funding Summer 2018 R Hughes","1,000.00","TPP - Private Nursery Education Funding","190482542","11/07/2018","Early Years","Early Years SEN Inclusion Fund","R5035"
"Wolverhampton City Council","http://opendatacommunities.org/id/metropolitan-district-council/wolverhampton","715821","EDF Energy","4428862","631.83","Electricity","190487288","23/07/2018","Corporate Asset Management","Central Utilities to Recharge","R2100"
"Wolverhampton City Council","http://opendatacommunities.org/id/metropolitan-district-council/wolverhampton","715822","Arcadis LLP","14003102","-20,590.32","External Professional Fees","130219620","04/07/2018","-","GF - LGF Feasibility","C6002"
"Wolverhampton City Council","http://opendatacommunities.org/id/metropolitan-district-council/wolverhampton","715822","Arcadis LLP","14033194","396.00","Services - Consultants","130221033","23/07/2018","Black Country Transport","Black Country Transport Director","R4404"
"Wolverhampton City Council","http://opendatacommunities.org/id/metropolitan-district-council/wolverhampton","715822","Arcadis LLP","14003101","-23,890.51","External Professional Fees","130219621","04/07/2018","-","GF - LGF Feasibility","C6002"
"Wolverhampton City Council","http://opendatacommunities.org/id/metropolitan-district-council/wolverhampton","715822","Arcadis LLP","14033186","40,000.00","Services - Consultants","130221032","04/07/2018","Black Country Transport","Black Country Transport Director","R4404"
"Wolverhampton City Council","http://opendatacommunities.org/id/metropolitan-district-council/wolverhampton","715822","Arcadis LLP","14033920","20,590.32","External Professional Fees","130218202","04/07/2018","-","GF - LGF Feasibility","C6002"
"Wolverhampton City Council","http://opendatacommunities.org/id/metropolitan-district-council/wolverhampton","715909","Family Action","23611","426.00","Direct Work With Children","130223247","25/07/2018","Specialist Support","Therapeutic Support Team","R6310"
"Wolverhampton City Council","http://opendatacommunities.org/id/metropolitan-district-council/wolverhampton","715951","Kate Tilley","KT-W-06-18(W-Q-57)","500.00","Services - Professional Fees","130221510","25/07/2018","Visitor Economy","Education And Access","R4400"
"Wolverhampton City Council","http://opendatacommunities.org/id/metropolitan-district-council/wolverhampton","716001","Sigma Surveying Services Limited","00001279/MAS","13,600.00","Services - Professional Fees","130218971","06/07/2018","Procurement Services","Corporate Procurement Unit","R4400"
"Wolverhampton City Council","http://opendatacommunities.org/id/metropolitan-district-council/wolverhampton","716001","Sigma Surveying Services Limited","00001290/MAS","15,800.00","Services - Professional Fees","130221941","27/07/2018","Procurement Services","Corporate Procurement Unit","R4400"
"Wolverhampton City Council","http://opendatacommunities.org/id/metropolitan-district-council/wolverhampton","716010","Kingdom Security Limited","0000491340","18,180.00","Services - Professional Fees","130221511","25/07/2018","Public Protection","Environmental Crime","R4400"
"Wolverhampton City Council","http://opendatacommunities.org/id/metropolitan-district-council/wolverhampton","716118","The Ashmore Play Hub Ltd","TFT Summer 2018 Inst 2","7,935.46","TPP - Private Nursery Education Funding","190489836","25/07/2018","Early Years","Early Years Entitlement Funding for Disadvantaged 2 Year Olds","R5035"
"Wolverhampton City Council","http://opendatacommunities.org/id/metropolitan-district-council/wolverhampton","716118","The Ashmore Play Hub Ltd","EYPP Summer 2018","286.20","TPP - Private Nursery Education Funding","190489844","25/07/2018","Early Years","Early Years Pupil Premium","R5035"
"Wolverhampton City Council","http://opendatacommunities.org/id/metropolitan-district-council/wolverhampton","716118","The Ashmore Play Hub Ltd","NEF Summer 2018 INST 2","7,007.40","TPP - Private Nursery Education Funding","190489824","25/07/2018","Early Years","Early Years Universal Entitlement for 3 and 4 Year Olds","R5035"
"Wolverhampton City Council","http://opendatacommunities.org/id/metropolitan-district-council/wolverhampton","716120","Care For the Family","12538","75.00","Books","130223248","23/07/2018","Early Intervention","EIP Locality 7 � Low Hill","R4309"
"Wolverhampton City Council","http://opendatacommunities.org/id/metropolitan-district-council/wolverhampton","716177","Bolinda Uk Ltd","27483","886.85","Books","130220317","04/07/2018","Local Economy","Global Budgets","R4309"
"Wolverhampton City Council","http://opendatacommunities.org/id/metropolitan-district-council/wolverhampton","716177","Bolinda Uk Ltd","27205","2,253.48","Books","130220314","04/07/2018","Local Economy","Global Budgets","R4309"
"Wolverhampton City Council","http://opendatacommunities.org/id/metropolitan-district-council/wolverhampton","716177","Bolinda Uk Ltd","27867","354.17","Books","130220318","04/07/2018","Local Economy","Global Budgets","R4309"
"Wolverhampton City Council","http://opendatacommunities.org/id/metropolitan-district-council/wolverhampton","716177","Bolinda Uk Ltd","28257","119.97","Books","130220319","04/07/2018","Local Economy","Global Budgets","R4309"
"Wolverhampton City Council","http://opendatacommunities.org/id/metropolitan-district-council/wolverhampton","716177","Bolinda Uk Ltd","27247","2,702.47","Books","130220315","04/07/2018","Local Economy","Global Budgets","R4309"
"Wolverhampton City Council","http://opendatacommunities.org/id/metropolitan-district-council/wolverhampton","716177","Bolinda Uk Ltd","27335","41.99","Books","130220316","04/07/2018","Local Economy","Global Budgets","R4309"
"Wolverhampton City Council","http://opendatacommunities.org/id/metropolitan-district-council/wolverhampton","716204","Pestbusters (Midlands) Limited","349462","175.00","Pest Control","130223367","25/07/2018","Maintenance Programme","Centralised R&M","R2702"
"Wolverhampton City Council","http://opendatacommunities.org/id/metropolitan-district-council/wolverhampton","716224","Homers Travel","383","2,080.40","Client Transport","130221512","06/07/2018","Special Educational Needs","Special - Transport","R3042"
"Wolverhampton City Council","http://opendatacommunities.org/id/metropolitan-district-council/wolverhampton","716224","Homers Travel","384","1,800.00","Client Transport","130221513","06/07/2018","Special Educational Needs","Special - Transport","R3042"
"Wolverhampton City Council","http://opendatacommunities.org/id/metropolitan-district-council/wolverhampton","716224","Homers Travel","385","1,120.00","Client Transport","130221514","06/07/2018","Special Educational Needs","Special - Transport","R3042"
"Wolverhampton City Council","http://opendatacommunities.org/id/metropolitan-district-council/wolverhampton","716227","Ascentis Awarding Body","59879","3.63","Exam Expenses (Non-Employee)","130220599","23/07/2018","Adult Education","Language Studies Delivery Area","R4630"
"Wolverhampton City Council","http://opendatacommunities.org/id/metropolitan-district-council/wolverhampton","716227","Ascentis Awarding Body","59879","3.63","Exam Expenses (Non-Employee)","130220599","23/07/2018","Adult Education","Foundation Studies Delivery Area","R4630"
"Wolverhampton City Council","http://opendatacommunities.org/id/metropolitan-district-council/wolverhampton","716227","Ascentis Awarding Body","59879","3.74","Exam Expenses (Non-Employee)","130220599","23/07/2018","Adult Education","Discretionary Fund","R4630"
"Wolverhampton City Council","http://opendatacommunities.org/id/metropolitan-district-council/wolverhampton","716227","Ascentis Awarding Body","59741","20.79","Exam Expenses (Non-Employee)","130220446","18/07/2018","Adult Education","Language Studies Delivery Area","R4630"
"Wolverhampton City Council","http://opendatacommunities.org/id/metropolitan-district-council/wolverhampton","716227","Ascentis Awarding Body","59741","20.79","Exam Expenses (Non-Employee)","130220446","18/07/2018","Adult Education","Foundation Studies Delivery Area","R4630"
"Wolverhampton City Council","http://opendatacommunities.org/id/metropolitan-district-council/wolverhampton","716227","Ascentis Awarding Body","59741","21.42","Exam Expenses (Non-Employee)","130220446","18/07/2018","Adult Education","Discretionary Fund","R4630"
"Wolverhampton City Council","http://opendatacommunities.org/id/metropolitan-district-council/wolverhampton","716227","Ascentis Awarding Body","59657","44.22","Exam Expenses (Non-Employee)","130220711","13/07/2018","Adult Education","Language Studies Delivery Area","R4630"
"Wolverhampton City Council","http://opendatacommunities.org/id/metropolitan-district-council/wolverhampton","716227","Ascentis Awarding Body","59657","44.22","Exam Expenses (Non-Employee)","130220711","13/07/2018","Adult Education","Foundation Studies Delivery Area","R4630"
"Wolverhampton City Council","http://opendatacommunities.org/id/metropolitan-district-council/wolverhampton","716227","Ascentis Awarding Body","59657","45.56","Exam Expenses (Non-Employee)","130220711","13/07/2018","Adult Education","Discretionary Fund","R4630"
"Wolverhampton City Council","http://opendatacommunities.org/id/metropolitan-district-council/wolverhampton","716246","One 4 You Services Ltd","6862","2,514.40","Client Transport","130221516","23/07/2018","Special Educational Needs","Special - Transport","R3042"
"Wolverhampton City Council","http://opendatacommunities.org/id/metropolitan-district-council/wolverhampton","716246","One 4 You Services Ltd","6863","1,400.00","Client Transport","130221517","23/07/2018","Special Educational Needs","Special - Transport","R3042"
"Wolverhampton City Council","http://opendatacommunities.org/id/metropolitan-district-council/wolverhampton","716246","One 4 You Services Ltd","6861","1,240.00","Client Transport","130221515","23/07/2018","Special Educational Needs","Special - Transport","R3042"
"Wolverhampton City Council","http://opendatacommunities.org/id/metropolitan-district-council/wolverhampton","716362","LHi Group Ltd/Lawrence Harvey","115925","4,655.00","Agency Staff","130218672","04/07/2018","Strategic Finance","Agresso System Support","R1100"
"Wolverhampton City Council","http://opendatacommunities.org/id/metropolitan-district-council/wolverhampton","716369","Armstrong Bell Ltd","0026741","177.91","Comms - Telephone Call charges","130219974","06/07/2018","Skills","Connexions Contract","R4505"
"Wolverhampton City Council","http://opendatacommunities.org/id/metropolitan-district-council/wolverhampton","716379","CN Unwin Limited","0000070941","55.45","Equipment - Purchase","190490179","27/07/2018","Fleet Services","Fleet Management","R4000"
"Wolverhampton City Council","http://opendatacommunities.org/id/metropolitan-district-council/wolverhampton","716392","Virgin Media Ltd","039003802/001/0618","6.39","Comms - Telephone Rental","130223634","27/07/2018","Catering","Primary Schools Catering","R4504"
"Wolverhampton City Council","http://opendatacommunities.org/id/metropolitan-district-council/wolverhampton","716430","Premier Education Group","433666-F Correct","200.00","Services - Professional Fees","130223485","25/07/2018","Schools","Christ Church (Tettenhall Wood) Infant School","R4400"
"Wolverhampton City Council","http://opendatacommunities.org/id/metropolitan-district-council/wolverhampton","716547","Teeny Tots Playgroup Ltd","NEF Summer 2018 INST 2","1,797.75","TPP - Private Nursery Education Funding","190489824","25/07/2018","Early Years","Early Years Universal Entitlement for 3 and 4 Year Olds","R5035"
"Wolverhampton City Council","http://opendatacommunities.org/id/metropolitan-district-council/wolverhampton","716547","Teeny Tots Playgroup Ltd","EYPP Summer 2018","477.00","TPP - Private Nursery Education Funding","190489844","25/07/2018","Early Years","Early Years Pupil Premium","R5035"
"Wolverhampton City Council","http://opendatacommunities.org/id/metropolitan-district-council/wolverhampton","716547","Teeny Tots Playgroup Ltd","TFT Summer 2018 Inst 2","11,475.60","TPP - Private Nursery Education Funding","190489836","25/07/2018","Early Years","Early Years Entitlement Funding for Disadvantaged 2 Year Olds","R5035"
"Wolverhampton City Council","http://opendatacommunities.org/id/metropolitan-district-council/wolverhampton","716571","E-Recruiter","1367","2,580.00","Agency Staff","130218674","04/07/2018","Strategic Finance","Agresso System Support","R1100"
"Wolverhampton City Council","http://opendatacommunities.org/id/metropolitan-district-council/wolverhampton","716571","E-Recruiter","1404","2,902.50","Agency Staff","130220713","25/07/2018","Strategic Finance","Agresso System Support","R1100"
"Wolverhampton City Council","http://opendatacommunities.org/id/metropolitan-district-council/wolverhampton","716571","E-Recruiter","1383","3,225.00","Agency Staff","130219330","11/07/2018","Strategic Finance","Agresso System Support","R1100"
"Wolverhampton City Council","http://opendatacommunities.org/id/metropolitan-district-council/wolverhampton","716571","E-Recruiter","1411","3,225.00","Agency Staff","130221415","27/07/2018","Strategic Finance","Agresso System Support","R1100"
"Wolverhampton City Council","http://opendatacommunities.org/id/metropolitan-district-council/wolverhampton","716571","E-Recruiter","1397","2,257.50","Agency Staff","130219975","18/07/2018","Strategic Finance","Agresso System Support","R1100"
"Wolverhampton City Council","http://opendatacommunities.org/id/metropolitan-district-council/wolverhampton","716575","Karen Broomhall","NEF Summer 2018 INST 2","306.00","TPP - Private Nursery Education Funding","190489824","25/07/2018","Early Years","Early Years Universal Entitlement for 3 and 4 Year Olds","R5035"
"Wolverhampton City Council","http://opendatacommunities.org/id/metropolitan-district-council/wolverhampton","716584","Atkins Limited","18024201","5,467.00","External Professional Fees","130221203","25/07/2018","-","GF - LGF Feasibility","C6002"
"Wolverhampton City Council","http://opendatacommunities.org/id/metropolitan-district-council/wolverhampton","716589","Elston Hall Multi-Academy Trust","Elston Hall Academy Early Years Payment Summer Term 2018-19","56,430.90","Grant Payments","190484564","13/07/2018","Central Education","Academy Early years","R4700"
"Wolverhampton City Council","http://opendatacommunities.org/id/metropolitan-district-council/wolverhampton","716589","Elston Hall Multi-Academy Trust","EYPP Summer 2018","477.00","TPP - Private Nursery Education Funding","190489844","25/07/2018","Early Years","Early Years Pupil Premium","R5035"
"Wolverhampton City Council","http://opendatacommunities.org/id/metropolitan-district-council/wolverhampton","716589","Elston Hall Multi-Academy Trust","Elston Hall Academy Early Years Payment Autumn Term Initerim 2018-19","23,625.94","Grant Payments","190484588","13/07/2018","Central Education","Academy Early years","R4700"
"Wolverhampton City Council","http://opendatacommunities.org/id/metropolitan-district-council/wolverhampton","716594","Burke Bros Recovery","G31786","70.00","Services - Professional Fees","190483205","11/07/2018","Fleet Services","Fleet Management","R4400"
"Wolverhampton City Council","http://opendatacommunities.org/id/metropolitan-district-council/wolverhampton","716594","Burke Bros Recovery","G33714","70.00","Services - Professional Fees","190486306","23/07/2018","Fleet Services","Fleet Management","R4400"
"Wolverhampton City Council","http://opendatacommunities.org/id/metropolitan-district-council/wolverhampton","716594","Burke Bros Recovery","G34140","70.00","Services - Professional Fees","190490250","27/07/2018","Fleet Services","Fleet Management","R4400"
"Wolverhampton City Council","http://opendatacommunities.org/id/metropolitan-district-council/wolverhampton","716594","Burke Bros Recovery","G33643","70.00","Services - Professional Fees","190483206","11/07/2018","Fleet Services","Fleet Management","R4400"
"Wolverhampton City Council","http://opendatacommunities.org/id/metropolitan-district-council/wolverhampton","716594","Burke Bros Recovery","G33479","70.00","Services - Professional Fees","190486305","23/07/2018","Fleet Services","Fleet Management","R4400"
"Wolverhampton City Council","http://opendatacommunities.org/id/metropolitan-district-council/wolverhampton","716620","Melsecure International","54403","94.00","Grant Payments","130210967","11/07/2018","Community Safety","SWP - Infrastructure","R4700"
"Wolverhampton City Council","http://opendatacommunities.org/id/metropolitan-district-council/wolverhampton","716620","Melsecure International","54403","96.00","Grant Payments","130210967","11/07/2018","Community Safety","SWP - Locations","R4700"
"Wolverhampton City Council","http://opendatacommunities.org/id/metropolitan-district-council/wolverhampton","716663","Terry Brayshaw","015","930.00","Services - Professional Fees","130221706","11/07/2018","School Planning & Resources","Music Support Team","R4400"
"Wolverhampton City Council","http://opendatacommunities.org/id/metropolitan-district-council/wolverhampton","716673","PAC-UK","17791","475.00","Services - Professional Fees","130221205","04/07/2018","Looked After Children","Adoption and Residence Team & Allowances","R4400"
"Wolverhampton City Council","http://opendatacommunities.org/id/metropolitan-district-council/wolverhampton","716673","PAC-UK","17357","5,750.00","Subscriptions","130221204","04/07/2018","Looked After Children","Adoption and Residence Team & Allowances","R4701"
"Wolverhampton City Council","http://opendatacommunities.org/id/metropolitan-district-council/wolverhampton","716697","Npower Leeds","79773612990_02-07-18","20.60","Electricity","190490320","27/07/2018","Corporate Asset Management","Central Utilities to Recharge","R2100"
"Wolverhampton City Council","http://opendatacommunities.org/id/metropolitan-district-council/wolverhampton","716725","Brooke Edgley Specialist Technical Services Ltd","9734   / 18","225.00","R&M - Departmental planned (external)","130221578","06/07/2018","Schools","The King�s Church of England School","R2001"
"Wolverhampton City Council","http://opendatacommunities.org/id/metropolitan-district-council/wolverhampton","716767","KINGSTON - Northern House Academy","Northern House PRU Invoice No NHAT_0594 Summer Term 18 Viability","15,676.00","Grant Payments","190490329","27/07/2018","Central Education","PRU Viability Contingency","R4700"
"Wolverhampton City Council","http://opendatacommunities.org/id/metropolitan-district-council/wolverhampton","716767","KINGSTON - Northern House Academy","NHAT_0569","6,013.61","TPP - Alternative Provision of Education","130223369","25/07/2018","Specialist Support","Alternative Provision","R5037"
"Wolverhampton City Council","http://opendatacommunities.org/id/metropolitan-district-council/wolverhampton","716767","KINGSTON - Northern House Academy","Northern House PRU Summer Term 18/19 Final Top Up Payment","44,410.53","Grant Payments","190487680","23/07/2018","Central Education","Special Schools Top Up Contingency","R4700"
"Wolverhampton City Council","http://opendatacommunities.org/id/metropolitan-district-council/wolverhampton","716767","KINGSTON - Northern House Academy","Northern House PRU Invoice No NHAT_0575 Spring Term 18 Viability","16,684.00","Grant Payments","190490328","27/07/2018","Central Education","PRU Viability Contingency","R4700"
"Wolverhampton City Council","http://opendatacommunities.org/id/metropolitan-district-council/wolverhampton","716767","KINGSTON - Northern House Academy","Northern House PRU Autumn Term 18/19 50% Interim Top Up Payment","49,239.47","Grant Payments","190487681","23/07/2018","Central Education","Special Schools Top Up Contingency","R4700"
"Wolverhampton City Council","http://opendatacommunities.org/id/metropolitan-district-council/wolverhampton","716776","NHS Supply Chain","1019062390","1,217.33","TPP - Public Health Contracts","130222396","25/07/2018","Starting and Developing Well","Healthy Start to Life","R5060"
"Wolverhampton City Council","http://opendatacommunities.org/id/metropolitan-district-council/wolverhampton","716806","Peak Activity Services Ltd","3465","7,375.00","TPP - Alternative Provision of Education","130221207","11/07/2018","Specialist Support","Alternative Provision","R5037"
